Cogmind - Beta 15 @@@ ROGUE MODE // 2025.06.23 @ 13:35:53 Player: Cog on my mind Result: Destroyed by Enhanced Grunt with Neutron Cannon Performance ------------- Evolutions (9) 4500 Regions Visited (34) 6800 Robots Destroyed (687) 3435 Value Destroyed (35751) 35751 Prototype IDs (106) 2120 Alien Tech Used (3) 600 Bonus (45346) 45346 TOTAL SCORE: 98552 Bonus ------- Triggered High Security 500 High Alert Combat Kills 4032 Follower Combat Kills 3553 Entered Garrisons 200 Network Hubs Disabled 600 Acquired ECA 300 Met Zhirov 300 Met Warlord at Base 500 MAIN.C Attacked Warlord 500 Warlord Defense Kills 5448 Built Enhanced Grunts 300 A7 Reached Mainframe 300 Met R17 at Cetus 500 Met R17 at Research 2000 Met Warlord at Research 2000 Invited to Help at Command 2000 Destroyed MAIN.C Guards 500 Met MAIN.C 5000 Hacked MAIN.C 300 Destroyed MAIN.C Shell 5000 Destroyed MAIN.C 10000 Met Warlord at Command 2000 Met Architect 300 Destroyed A8 300 Destroyed A6 400 Destroyed A5 500 Friendly Fire -1987 Cogmind --------- Core Integrity 0/1600 Matter 275/300 Energy 99/100 System Corruption 2% Temperature Cool (0) Movement Core (50) Location -1/Access_0 Parts ------- > --- POWER (3) -------- (None) > --- PROPULSION (6) --- (None) > --- UTILITY (13) ----- (None) > --- WEAPON (3) ------- (None) > --- INVENTORY (5) ---- Experimental Matter Compressor (500) Advanced Force Field Long-range Tractor Beam Peak State ------------ > --- POWER ------------ Zero-point Reactor Vortex Chain Reactor > --- PROPULSION ------- Experimental Biometal Heavy Treads Experimental Biometal Heavy Treads Advanced Heavy Siege Treads > --- UTILITY ---------- Experimental Heat Sink Advanced Coolant Injector Huge Storage Unit Experimental Terrain Scanner Experimental Targeting Computer Experimental Core Analyzer Precision Energy Filter Precision Energy Filter Quantum Capacitor Heavy Regenerative Plating Advanced Force Field > --- WEAPON ----------- Cooled Nova Cannon Improved Potential Cannon > --- INVENTORY -------- Quantum Reactor Improved Quantum Reactor Biometal Medium Treads Armored Heavy Treads Advanced Heavy Siege Treads Experimental Biometal Medium Treads Advanced Coolant Injector Experimental Energy Well Experimental Matter Compressor Advanced Target Analyzer Improved Armor Integrity Analyzer Advanced Phase Shifter Graphene Brace Experimental Focal Shield Experimental Thermal Defense Suite Advanced Shield Generator Long-range Tractor Beam Transdimensional Reconstructor Warp Gun Potential Cannon Fusion Bomb Launcher [Rating: 239] Favorites ----------- Power F-cell Engine Engine F-cell Engine Power Core Neutrino Core Reactor Heavy Antimatter Reactor Propulsion Centrium Heavy Treads Treads Centrium Heavy Treads Leg Myomer Leg Wheel Compact Wheel Utility Huge Storage Unit Device Advanced Sensor Array Storage Huge Storage Unit Processor Advanced Signal Interpreter Hackware Advanced Hacking Suite Protection Centrium Medium Armor Plating Weapon Cooled Plasma Cannon Energy Gun Advanced Beam Rifle Energy Cannon Cooled Plasma Cannon Ballistic Gun Advanced KE Penetrator Ballistic Cannon Hardcell Cannon Launcher Heavy Missile Launcher Special Weapon Advanced Remote Datajack Slashing Weapon Phasing Sabre Special Melee Weapon Advanced Datajack Build | -11 -10 -10 -9 -9 -8 -7 -7 -6 -6 -6 -6 -6 -6 -6 -5 -5 -5 -5 -5 -5 -4 -4 -4 -4 -4 -4 -4 -3 -3 -3 -2 -1 -1 -1 ------- Run | Yrd Mat Min Mat Min Mat Fac Gar Fac Was Fac Ext Cet Arc Hub Fac Was Fac Upp Upp Zhi Pro Fac Was Fac Upp Upp War Pro Res Tes Res Acc Com Ac0 Slots Evolved 18 | . . . 2 . 2 2 . 2 . . . . . . 2 . . . . . . 2 . . . . . . 2 . 2 2 . . Power 2 | . . . . . . 1 . . . . . . . . . . . . . . . . . . . . . . . . . 1 . . Propulsion 4 | . . . . . 1 . . 1 . . . . . . . . . . . . . 2 . . . . . . . . . . . . Utility 11 | . . . 1 . 1 1 . 1 . . . . . . 2 . . . . . . . . . . . . . 2 . 2 1 . . Weapon 1 | . . . 1 . . . . . . . . . . . . . . . . . . . . . . . . . . . . . . . Parts Attached 392 | 7 4 4 23 . 22 10 9 10 4 21 17 12 7 3 9 2 33 7 1 3 3 12 9 9 4 5 11 10 36 24 17 5 29 10 Power 41 | 1 1 . 3 . 1 2 4 2 1 1 3 1 . 1 2 . 1 . . 1 1 1 . . . . 1 . 3 1 1 3 2 3 Engine 18 | 1 1 . 3 . 1 2 3 2 . . 3 . . . 1 . . . . . 1 . . . . . . . . . . . . . Core 3 | . . . . . . . 1 . . 1 . . . . 1 . . . . . . . . . . . . . . . . . . . Reactor 20 | . . . . . . . . . 1 . . 1 . 1 . . 1 . . 1 . 1 . . . . 1 . 3 1 1 3 2 3 Propulsion 78 | 2 . 2 6 . 10 3 3 1 1 7 5 3 . 1 . 1 2 . . 1 . 3 2 . . . . 6 4 2 5 . 5 3 Treads 72 | 2 . 1 6 . 10 3 3 1 1 7 5 2 . 1 . 1 2 . . . . 3 2 . . . . 4 4 2 5 . 4 3 Leg 5 | . . . . . . . . . . . . 1 . . . . . . . 1 . . . . . . . 2 . . . . 1 . Wheel 1 | . . 1 . . . . . . . . . . . . . . . . . . . . . . . . . . . . . . . . Hover . | . . . . . . . . . . . . . . . . . . . . . . . . . . . . . . . . . . . Flight . | . . . . . . . . . . . . . . . . . . . . . . . . . . . . . . . . . . . Utility 174 | 2 2 1 2 . 7 2 . 4 1 8 7 6 5 1 4 1 21 5 1 1 1 7 3 5 1 3 6 4 22 12 9 2 15 3 Device 91 | 1 1 1 1 . 4 2 . 4 . 2 3 2 3 . 2 . 12 4 1 1 1 3 1 2 1 2 2 1 11 4 5 1 11 2 Storage 9 | 1 1 . . . . . . . . . 1 2 . . . . . . . . . 1 . . . . . . . 2 . . 1 . Processor 20 | . . . . . 1 . . . . 1 . . . . 1 . 3 . . . . . . 1 . 1 2 1 6 . 2 . 1 . Hackware 18 | . . . . . . . . . . 1 1 . 2 . . . 3 . . . . 2 . 1 . . 1 . 2 2 2 1 . . Protection 36 | . . . 1 . 2 . . . 1 4 2 2 . 1 1 1 3 1 . . . 1 2 1 . . 1 2 3 4 . . 2 1 Artifact . | . . . . . . . . . . . . . . . . . . . . . . . . . . . . . . . . . . . Weapon 99 | 2 1 1 12 . 4 3 2 3 1 5 2 2 2 . 3 . 9 2 . . 1 1 4 4 3 2 4 . 7 9 2 . 7 1 Energy Gun 26 | 2 1 . 5 . 2 1 2 . . . . 1 . . 1 . . 1 . . 1 . 1 . 1 1 1 . . 3 . . 2 . Energy Cannon 23 | . . . 2 . . 1 . 3 . 2 1 . 1 . 1 . 2 . . . . . 1 1 . . . . 4 3 . . 1 . Ballistic Gun 11 | . . 1 1 . . . . . . . . 1 . . . . 1 1 . . . . 1 1 . . 1 . 2 . . . 1 . Ballistic Cannon 12 | . . . . . . . . . . . . . . . . . 3 . . . . 1 . 1 1 1 1 . . 1 1 . 1 1 Launcher 17 | . . . 3 . 1 1 . . 1 3 . . . . . . 2 . . . . . 1 1 . . . . 1 1 1 . 1 . Special Weapon 3 | . . . . . . . . . . . . . . . . . . . . . . . . . . . 1 . . 1 . . 1 . Impact Weapon . | . . . . . . . . . . . . . . . . . . . . . . . . . . . . . . . . . . . Slashing Weapon 6 | . . . 1 . 1 . . . . . 1 . . . 1 . 1 . . . . . . . 1 . . . . . . . . . Piercing Weapon . | . . . . . . . . . . . . . . . . . . . . . . . . . . . . . . . . . . . Special Melee Weapon 1 | . . . . . . . . . . . . . 1 . . . . . . . . . . . . . . . . . . . . . Unidentified Prototypes 70 | . . . 3 . 1 1 . 1 . . 1 7 . . 3 . 4 . . 3 . 4 . 2 . . 7 . 2 11 7 1 10 2 Corrupted Parts 1 | . . . . . . . . . . . . . . 1 . . . . . . . . . . . . . . . . . . . . System Corruption 4 | . . . . . . . . . . . . . . 4 . . . . . . . . . . . . . . . . . . . . Parts Lost 92 | . . 3 . . 3 . 2 1 . 7 3 . 2 2 4 . 8 1 . . . 1 . 3 2 9 2 5 3 . . . 5 26 Power 13 | . . . . . . . 2 . . 1 1 . . . . . 1 . . . . . . . 1 . . 2 . . . . 1 4 Propulsion 17 | . . 2 . . . . . . . 3 . . . . . . . . . . . . . . . 2 1 2 . . . . 2 5 Utility 42 | . . . . . 2 . . 1 . 3 1 . . 1 2 . 4 1 . . . 1 . 3 . 5 . 1 2 . . . 2 13 Weapon 20 | . . 1 . . 1 . . . . . 1 . 2 1 2 . 3 . . . . . . . 1 2 1 . 1 . . . . 4 Highest Loss Streak 10 | . . 3 . . 1 . 1 1 . 6 2 . 2 1 2 . 5 1 . . . 1 . 2 2 3 2 4 2 . . . 3 10 To Critical Strikes 2 | . . . . . . . . . . . . . . . . . . . . . . . . . . . . . . . . . . 2 Average Backups 18 | 1 5 9 14 15 14 14 14 14 14 13 14 22 22 22 21 21 20 20 21 20 21 20 21 20 20 17 17 18 22 22 21 20 21 12 Power 1 | . . 1 1 1 1 . . . . . . 2 2 1 1 2 1 1 1 1 1 1 2 1 1 1 1 2 1 1 1 1 1 1 Propulsion 2 | . 1 . 3 3 3 4 3 2 2 2 2 4 4 4 3 3 3 3 3 3 3 2 3 3 4 3 1 1 2 . 1 2 3 3 Utility 8 | . 2 5 4 4 4 4 6 6 7 5 6 7 9 10 11 11 9 9 10 9 9 8 8 8 7 6 6 7 9 11 10 10 12 7 Weapon 5 | . . 2 5 7 5 5 5 4 5 5 4 7 6 6 5 5 5 6 6 6 6 6 5 4 5 4 5 5 6 5 6 5 2 . Tool/Special . | . . . . . . . . . . . . . . . . . . . . . . . . . . . . . . . . . . . Unused Backups 80 | . 1 . 11 . 4 3 2 1 3 6 4 3 . . 2 . 4 . . . . . . . . . 2 . 2 9 5 . 18 . Power 10 | . . . 1 . 1 . . . . . 2 2 . . . . . . . . . . . . . . . . 1 1 . . 2 . Propulsion 23 | . 1 . 4 . . . . . . 1 1 . . . 2 . 1 . . . . . . . . . . . . . 2 . 11 . Utility 24 | . . . 2 . 2 . 2 . 3 3 1 . . . . . 2 . . . . . . . . . . . 1 3 1 . 4 . Weapon 23 | . . . 4 . 1 3 . 1 . 2 . 1 . . . . 1 . . . . . . . . . 2 . . 5 2 . 1 . Tool/Special . | . . . . . . . . . . . . . . . . . . . . . . . . . . . . . . . . . . . Average Slot Usage (%) 87 | . 100 87 99 100 99 99 99 99 80 92 93 87 85 83 82 81 87 87 88 71 87 84 84 84 83 83 82 88 97 94 86 79 71 65 Engine 5 | . 14 14 11 11 9 15 13 11 8 4 6 11 6 6 1 5 5 5 5 5 5 5 5 5 4 5 4 1 4 2 . . . . Reactor 4 | . . . . . . . . . 4 6 5 1 6 6 5 5 4 5 5 5 5 5 5 5 5 4 5 7 4 5 8 7 7 8 Treads 18 | . 28 18 20 22 27 23 23 25 21 23 26 14 13 13 11 10 11 11 11 10 10 16 21 16 15 16 18 24 28 23 17 16 13 11 Device 15 | . 14 14 21 22 17 22 23 25 12 18 7 12 12 9 17 17 14 16 16 17 17 14 9 14 10 10 9 8 10 9 16 15 20 19 Storage 6 | . 14 14 11 11 9 7 7 6 6 6 6 6 6 6 5 5 5 5 5 5 5 5 5 5 5 5 6 5 4 4 4 4 4 4 Processor 8 | . . . . . 6 7 7 6 1 3 6 6 6 6 5 5 8 11 11 11 11 7 5 5 10 10 13 16 20 21 17 16 9 10 Hackware 3 | . . . . . . . . . . 1 5 6 6 6 5 5 7 5 5 5 5 7 10 10 10 9 7 . 3 4 4 4 . . Protection 4 | . . . . . 3 . . . 4 4 5 6 6 6 5 5 7 5 5 4 5 4 5 4 5 3 . 5 4 4 4 4 6 4 Energy Gun 4 | . 28 18 17 33 26 22 19 5 . . . . 5 5 4 . . . . . . . . . . . . . . . . 3 1 . Energy Cannon 7 | . . . 9 . . . . 13 8 19 19 19 8 12 10 5 13 10 11 1 10 9 3 . . . . . 4 6 7 7 7 4 Ballistic Gun 2 | . . 5 6 . . . . . . . . . . . . . . . . . . . 2 11 13 7 3 9 6 2 . . . . Ballistic Cannon 2 | . . . . . . . . . . . . . . . . . 1 4 5 . 4 5 8 3 1 7 10 5 1 3 4 . . . Peak Build Rating 239 | 7 8 8 26 26 32 40 41 60 76 80 76 106 108 112 123 117 129 130 131 129 131 150 149 151 147 146 156 149 157 179 210 228 239 237 Average Rating 120 | 5 7 7 21 26 30 37 40 56 71 72 71 95 106 107 116 110 123 128 129 110 128 140 145 148 145 140 143 137 149 166 198 224 231 204 On Entrance 103 | . 7 8 8 26 26 31 38 41 60 76 69 69 104 107 97 111 117 128 129 129 129 129 145 149 145 145 131 141 136 148 171 205 226 235 Naked Turns 22 | . . . . . . . . . . . . . . . . . . . . . . . . . . . . . . . . . . 22 Heaviest Build 222 | 14 28 28 40 36 43 56 58 73 115 92 97 153 153 158 161 160 160 154 161 150 159 171 171 159 152 158 158 140 166 178 203 215 219 222 Greatest Support 250 | 40 40 40 43 43 63 60 66 89 116 123 116 160 160 160 160 160 160 160 160 160 160 230 230 235 235 235 235 230 197 202 240 240 250 250 Greatest Overweight (x) 2 | . . 1 2 . . . . . . 1 1 1 . . 1 1 . . 1 1 . . 1 . . . . 2 . . 1 . 1 . Average Overweight (x) . | . . . . . . . . . . . . . . . . . . . . . . . . . . . . . . . . . . . Largest Inventory Capacity 25 | 8 15 15 15 15 15 15 15 15 15 15 15 25 25 25 25 25 25 25 25 25 25 25 25 25 25 25 25 25 25 25 25 25 25 25 Average Capacity 21 | 7 9 15 15 15 15 15 15 15 15 15 15 23 25 25 25 25 25 25 25 25 25 25 25 25 25 25 25 25 25 25 25 25 25 24 Most Carried 25 | 2 9 11 15 15 15 15 15 15 15 15 15 25 25 25 25 25 25 25 25 25 25 25 25 25 25 24 25 23 25 25 25 25 25 23 Average Carried 20 | 1 5 9 14 14 14 14 14 14 14 14 14 23 23 24 23 24 24 24 25 24 24 24 24 23 23 19 20 20 24 24 24 22 23 16 Final Capacity 25 | 8 15 15 15 15 15 15 15 15 15 15 15 25 25 25 25 25 25 25 25 25 25 25 25 25 25 25 25 25 25 25 25 25 25 5 Final Carried 25 | 2 9 10 15 15 15 15 15 15 14 15 15 25 25 25 25 24 25 25 25 25 25 24 25 22 23 13 20 22 25 25 25 23 25 3 Class Distribution -------------------- 25% | Scavenger-Tank 16% | Scavenger-Gunner 14% | Gunner 13% | Hacker-Tank 10% | Tank 5% | Mutant 5% | Commander-Tank 4% | Hacker-Gunner Dominant Class ---------------- Mutant | -10/Materials Mutant | -10/Mines Scavenger-Gunner | -9/Materials Gunner | -9/Mines Gunner | -8/Materials Scavenger-Gunner | -7/Factory Scavenger-Gunner | -7/Garrison Scavenger-Gunner | -6/Factory Scavenger-Tank | -6/Waste Scavenger-Tank | -6/Factory Commander-Tank | -6/Extension Commander-Tank | -6/Cetus Commander-Mutant | -6/Archives Commander-Tank | -6/Hub_04(d) Scavenger-Tank | -5/Factory Scavenger-Tank | -5/Waste Scavenger-Tank | -5/Factory Scavenger-Tank | -5/Upper Caves Scavenger-Tank | -5/Upper Caves Scavenger-Mutant | -5/Zhirov Tank | -4/Proximity Caves Hacker-Tank | -4/Factory Hacker-Tank | -4/Waste Hacker-Tank | -4/Factory Hacker-Tank | -4/Upper Caves Hacker-Tank | -4/Upper Caves Hacker-Gunner | -4/Warlord Scavenger-Tank | -3/Proximity Caves Scavenger-Gunner | -3/Research Hacker-Gunner | -3/Testing Tank | -2/Research Gunner | -1/Access Gunner | -1/Command Gunner | -1/Access_0 Resources | -11 -10 -10 -9 -9 -8 -7 -7 -6 -6 -6 -6 -6 -6 -6 -5 -5 -5 -5 -5 -5 -4 -4 -4 -4 -4 -4 -4 -3 -3 -3 -2 -1 -1 -1 ----------- Run | Yrd Mat Min Mat Min Mat Fac Gar Fac Was Fac Ext Cet Arc Hub Fac Was Fac Upp Upp Zhi Pro Fac Was Fac Upp Upp War Pro Res Tes Res Acc Com Ac0 Matter Collected 18341 | 270 30 69 462 . 429 216 317 129 284 830 372 245 105 85 245 430 1036 490 341 . 597 1285 203 1352 680 1203 1763 512 702 1931 949 100 619 60 Remotely 284 | . . . . . . . . . . . . . . . . . . . . . . . . . . . . . . . 284 . . . Salvage Created 33086 | 133 484 154 1644 73 2152 603 559 334 1370 2415 1171 262 435 405 934 1358 2036 342 295 . 392 1292 24 2350 632 772 1710 282 1079 1862 1415 1360 2079 678 Parts 1276 | 6 21 8 111 7 111 34 13 11 4 99 45 7 30 27 28 2 71 11 18 . 16 50 1 109 21 22 58 8 32 109 46 53 81 6 Haulers Intercepted 32 | . 1 . 3 . 4 3 . . . 7 1 . . . 3 . 2 . . . . 2 . 2 . . . . 2 . 2 . . . Recyclers Shooed 12 | . 2 . . . . . . . . 5 . . . . 1 . 2 . . . . . . . . . . . . 1 . 1 . . Parts Field Recycled . | . . . . . . . . . . . . . . . . . . . . . . . . . . . . . . . . . . . Retrieved Matter . | . . . . . . . . . . . . . . . . . . . . . . . . . . . . . . . . . . . Parts Self-Destructed 91 | . . . . . . . . . . . . . . . . . . 9 14 . 14 . . . 20 26 . 8 . . . . . . Prevented 4 | . . . . . . . . . . . . . . . . . . . . . . . . . 3 1 . . . . . . . . Kills | -11 -10 -10 -9 -9 -8 -7 -7 -6 -6 -6 -6 -6 -6 -6 -5 -5 -5 -5 -5 -5 -4 -4 -4 -4 -4 -4 -4 -3 -3 -3 -2 -1 -1 -1 ------- Run | Yrd Mat Min Mat Min Mat Fac Gar Fac Was Fac Ext Cet Arc Hub Fac Was Fac Upp Upp Zhi Pro Fac Was Fac Upp Upp War Pro Res Tes Res Acc Com Ac0 Combat Hostiles Destroyed 571 | . 9 6 30 3 36 13 51 6 6 32 22 4 3 7 12 6 31 12 5 . 14 24 . 34 8 17 40 6 13 30 24 17 31 19 Guns 158 | . 9 6 12 3 28 6 18 2 . . . . 1 2 3 . . . . . . . . 28 7 4 . 4 9 6 . 3 7 . Cannons 231 | . . . 11 . . . . 3 . 14 13 4 2 3 7 . 19 6 5 . 6 14 . . 1 13 27 2 3 23 17 13 15 10 AOE 160 | . . . 7 . 8 7 33 . 6 15 7 . . 1 . 6 9 5 . . 8 7 . 5 . . 13 . 1 1 6 . 8 7 Classes Destroyed 29 | 3 4 1 4 . 1 1 1 . 1 5 . . . . . . 1 . 2 . . . . 1 . . 2 . . . 1 . 1 . Worker 20 | 1 1 . . 1 . 3 . . . 4 . . . . 1 . 3 . . . . . . 1 . . . . . 3 1 . 1 . Builder 16 | . . . 1 . 2 1 . . . 8 1 . . 2 . . 1 . . . . . . . . . . . . . . . . . Tunneler 7 | 1 . 1 . . . . . . . 2 . . . . . . 1 . . . . . . . . . . . 2 . . . . . Hauler 32 | . 1 . 3 . 4 3 . . . 7 1 . . . 3 . 2 . . . . 2 . 2 . . . . 2 . 2 . . . Recycler 16 | 1 1 . 5 . 1 . . . . 3 . . . . 1 . 1 . . . . 1 . . . . . . . . . 1 1 . Carrier 1 | . . . . . . . . . . . . . . . . . 1 . . . . . . . . . . . . . . . . . Minesweeper 4 | . . . . . . . . . . . . . . . . . . . 1 . 1 . . . 2 . . . . . . . . . Mechanic 4 | . . . . . . . . . . . . . . . . . . . . . . . . 1 . . . . . . 1 . 2 . Operator 22 | . 1 . 2 . 3 1 . . . 2 . . 6 . . . 1 . . . . 1 . . . . . . 1 3 . . 1 . Watcher 28 | . . . 3 . 5 . . . . 3 . . . . . . 2 . . . . 1 . 4 . . . . . 3 5 . 2 . Swarmer 102 | . 3 3 11 3 3 7 4 . . 6 6 . . . 5 . 3 8 . . 8 9 . 10 . 2 5 . . 3 1 2 . . Saboteur 1 | . . . . . . . . . . . . . . . . . . . . . . . . . . . . . . . . . 1 . Grunt 184 | . 6 2 11 . 22 3 3 1 . 12 5 . . 2 4 . 15 2 1 . 6 4 . 11 3 7 24 . 7 9 6 8 10 . Brawler 11 | . . . 1 . 2 . . . . . . . . . . . . . . . . . . 1 . 3 3 . . . . 1 . . Duelist 11 | . . . . . . . . . . 1 2 . . . . . . . . . . . . 1 . 2 1 . 1 1 . . 2 . Protector 4 | . . . . . . . . . . 1 . . . 1 . . . . . . . . . . . 1 1 . . . . . . . Sentry 58 | . . . 7 . 8 1 2 2 . 3 8 . 3 2 1 . 3 2 1 . . 3 . 1 1 2 . 1 4 . . 1 2 . Demolisher 3 | . . . . . . . 1 . . . . . . . . . . . . . . . . . . . . . 1 . 1 . . . Specialist 2 | . . . . . . . . . . 2 . . . . . . . . . . . . . . . . . . . . . . . . Hunter 42 | . . . . . 1 . 1 1 . 1 . . . . . . 2 . 2 . . 4 . 4 2 . 2 4 . 3 7 . 8 . Programmer 55 | . . . . . . 2 . 2 . 4 . . . 1 2 . 8 . . . 2 4 . 6 1 . . . . 14 1 4 4 . Heavy 3 | . . . . . . . . . . 1 . . . 1 . . . . . . . . . . . . . . . . . 1 . . Behemoth 5 | . . . . . . . . . . 1 1 . . . . . . . . . . . . . 1 . 1 1 . . . . . . Compactor 12 | . . . . . . . . . 6 . . . . . . 6 . . . . . . . . . . . . . . . . . . Cetus Guard 4 | . . . . . . . . . . . . 4 . . . . . . . . . . . . . . . . . . . . . . M Guard 1 | . . . . . . . . . . . . . . . . . . . . . . . . . . . . . . . . . 1 . Enhanced Grunt 10 | . . . . . . . . . . . . . . . . . . . . . . . . . . . . . . . . . . 10 Enhanced Hunter 6 | . . . . . . . . . . . . . . . . . . . . . . . . . . . . . . . . . . 6 Combat Programmer 2 | . . . . . . . . . . . . . . . . . . . . . . . . . . . . . . . . . 2 . Striker 6 | . . . . . . . . . . . . . . . . . . . . . . . . . . . 1 . . . 5 . . . Executioner 5 | . . . . . . . . . . . . . . . . . . . . . . . . . . . 2 . . . 3 . . . Assembled 41 | . . 1 . . . . 40 . . . . . . . . . . . . . . . . . . . . . . . . . . . Wasp 1 | . . . . . . . . . . . . . . . . . . . . . . . 1 . . . . . . . . . . . Thug 3 | . . . . . . . . . . . . . . . . . . . . . . . . 2 . . 1 . . . . . . . Fireman 1 | . . . . . . . . . . . . . . . . . . . . . . . . . . . . . . . 1 . . . Mutant 1 | . . . . . . . . . . . . . . . . . . . 1 . . . . . . . . . . . . . . . Best Kill Streak 29 | 2 2 3 6 3 13 10 29 2 6 20 9 2 5 4 8 6 16 5 2 . 5 6 . 7 2 8 13 2 8 4 11 12 15 3 Combat Bots Only 29 | . 2 3 4 3 11 7 29 2 6 11 9 2 2 3 8 6 13 5 2 . 5 6 . 6 2 8 13 2 8 4 11 12 13 3 Max Kills in Single Turn 8 | 1 1 1 3 1 3 4 7 1 2 8 4 1 1 1 2 2 3 2 1 . 2 2 1 3 2 1 3 1 2 2 2 1 3 2 Gunslinging 1 | . . . . . 1 . . . . . . . . . . . . . . . . . . 1 . . . . 1 . . . . . Exploded 7 | . . . 3 . 3 3 7 . 2 3 4 . . 1 . 2 2 2 . . 2 2 . 3 . . 3 . 1 1 1 . 2 2 Melee . | . . . . . . . . . . . . . . . . . . . . . . . . . . . . . . . . . . . Uniques/NPCs Destroyed 4 | . . . . . . . . . . . . . . . . . . . . . . . . . . . . . . . . . 1 3 MAIN.C (-1/Command) A8 (-1/Access_0) A6 (-1/Access_0) A5 (-1/Access_0) Combat | -11 -10 -10 -9 -9 -8 -7 -7 -6 -6 -6 -6 -6 -6 -6 -5 -5 -5 -5 -5 -5 -4 -4 -4 -4 -4 -4 -4 -3 -3 -3 -2 -1 -1 -1 -------- Run | Yrd Mat Min Mat Min Mat Fac Gar Fac Was Fac Ext Cet Arc Hub Fac Was Fac Upp Upp Zhi Pro Fac Was Fac Upp Upp War Pro Res Tes Res Acc Com Ac0 Hostile Shots Fired 3511 | . 63 25 55 7 89 84 106 84 . 197 217 16 9 114 49 . 197 47 36 . 37 181 . 245 117 119 126 98 84 136 132 65 308 468 Missed 1052 | . 14 5 17 2 35 39 45 33 . 54 88 4 5 26 16 . 28 12 4 . 8 51 . 63 28 28 27 28 21 41 60 14 113 143 Hits 2459 | . 49 20 38 5 54 45 61 51 . 143 129 12 4 88 33 . 169 35 32 . 29 130 . 182 89 91 99 70 63 95 72 51 195 325 Melee 31 | . . . . . . . . . . . 3 . . . . . . . . . . . . 3 . 11 8 . . . 1 . . 5 Projectile 2428 | . 49 20 38 5 54 45 61 51 . 143 126 12 4 88 33 . 169 35 32 . 29 130 . 179 89 80 91 70 63 95 71 51 195 320 AOE 14 | . . . . . . . 2 . . . . . . 1 . . . . . . 1 . . . . . . . 4 . 1 . 5 . Critical Strikes 123 | . 2 . 3 . 4 1 . . . 8 1 4 1 2 3 . 14 1 1 . 1 9 . 7 1 2 2 1 4 5 4 5 5 32 Actively Blocked 1 | . . . . . . . . . . . . . . . . . . . . . . . . . . . . . 1 . . . . . Part Disruptions 5 | . . . . . . . 1 . . . . . . . . . . . . . . . . . . . . . . 2 . . 1 1 Damage Taken 43625 | . 517 222 497 45 844 501 756 404 3 2374 1417 294 107 1711 995 85 3080 552 405 . 459 1905 . 2301 1106 1396 2269 1259 1230 1122 1176 738 3436 10419 Core 3645 | . 111 30 110 10 60 40 168 41 . 237 81 21 . 128 92 7 228 27 31 . . 42 . 114 96 23 164 136 22 135 17 31 15 1428 Absorbed by Shields 7101 | . . . . . 24 . . 160 3 213 385 65 30 5 120 . 623 106 107 . 147 711 . 826 489 674 . . 468 309 391 263 652 330 Reduced by Siege Mode 1809 | . . . . . . . . . . 34 . . . 28 5 . 257 13 44 . 44 162 . 145 137 159 181 44 . 20 52 71 158 255 Redirected to Shielding 134 | . . . . . . . . . . . . . . . . . . . . . . . . . . . . 42 92 . . . . . Ignored by Resistances 2569 | . . . . . . . . . . . . . . . . . . 54 112 . . . . . 53 . . 413 . 394 194 204 1025 120 Regen/Repaired (Parts) 4694 | . . . . . . . . . . 130 . . . . . . 1788 . . . . . . 1871 . . 432 . . . . . . 473 Core Remaining (%) 70 | 100 . 43 . 70 89 . 70 . . . . . . 40 . . . . . . 61 . . . . . . 50 . 87 98 . . . Volleys Fired 1709 | 5 52 36 65 5 86 24 54 15 13 96 48 12 7 28 42 17 111 20 23 . 27 81 . 75 38 32 54 27 51 99 63 75 199 129 Largest 3 | 2 2 2 3 3 3 3 3 3 3 3 3 3 3 3 3 2 3 3 3 . 3 3 . 3 3 3 3 3 3 3 3 1 1 1 Hottest 308 | 90 100 100 183 183 183 192 211 240 293 308 175 245 150 240 150 82 180 180 180 . 180 180 . 121 120 157 150 126 241 214 218 150 200 200 Shots Fired 3604 | 10 104 57 184 15 222 64 112 45 25 257 133 35 19 74 112 24 240 49 63 . 39 195 1 214 110 92 149 81 115 208 153 75 199 129 Gun 1318 | 10 104 57 114 15 214 60 99 18 . . . . 2 24 35 . 1 . . . . . . 186 103 23 2 54 51 42 . 19 85 . Cannon 2156 | . . . 66 . . 1 . 27 9 245 131 35 17 49 77 . 228 46 63 . 28 192 1 26 7 69 141 27 64 166 143 56 113 129 Launcher 129 | . . . 4 . 8 3 13 . 16 12 2 . . 1 . 24 11 3 . . 11 3 . 2 . . 6 . . . 10 . . . Special 1 | . . . . . . . . . . . . . . . . . . . . . . . . . . . . . . . . . 1 . Kinetic 1016 | . . 9 44 . . . . . . . . . . . 5 . 12 13 18 . 16 71 1 212 110 92 143 72 60 87 49 . . 2 Thermal 2381 | 10 104 48 134 15 214 61 99 45 9 245 131 35 19 73 107 . 217 33 45 . 12 121 . . . . . . 50 121 94 75 137 127 Explosive 129 | . . . 4 . 8 3 13 . 16 12 2 . . 1 . 24 11 3 . . 11 3 . 2 . . 6 . . . 10 . . . Electromagnetic 2 | . . . 2 . . . . . . . . . . . . . . . . . . . . . . . . . . . . . . . Entropic 75 | . . . . . . . . . . . . . . . . . . . . . . . . . . . . 9 5 . . . 61 . Robot Hit Streak 25 | 6 17 11 9 8 11 15 25 19 8 21 11 11 3 13 11 15 17 11 10 . 9 20 2 20 9 16 15 17 25 22 24 25 22 10 Robot Miss Streak 9 | 2 5 2 4 2 4 2 5 2 2 5 6 1 1 3 7 1 4 1 2 . 4 6 . 9 5 2 2 2 2 3 4 1 2 4 Penetration Max 3 | . . . . . . . . . . . . . . . . . . . . . . . . 1 1 1 3 . 2 1 . . 2 . Secondary Targets 16 | . . . . . 1 1 1 . . . . . . . . . . . . . . . . 10 . . . . 3 . . . . . Max Gunslinging Chain 2 | . . . . . 1 1 1 . . . . . . . . . . . . . . . . 2 . . . . 1 . . . . . Capacitor 389 | . . . . . . . . . . . . . . . . . . . . . . . . . . . . . . . . 75 198 116 Shots Hit Robots 2167 | 7 70 39 87 7 130 41 70 30 16 164 86 25 26 33 62 17 139 28 35 . 19 106 1 129 65 64 91 67 69 107 99 34 135 69 Core Hits 1339 | 4 25 13 52 4 86 32 87 11 16 102 45 11 9 14 24 13 79 16 14 . 31 46 1 87 23 38 98 21 41 57 61 32 90 56 Critical Kills 45 | . . . . . . . . . . 2 1 . . 1 1 . 2 . . . . 2 . 9 3 2 11 1 2 2 1 2 1 2 Critical Parts Destroyed 53 | . . . . . . . . . . . . . . . . . . . . . . . . 12 13 . 19 . 1 1 . . 7 . Critical Strikes 165 | . 7 7 2 1 7 3 4 . . 2 1 . . 1 1 . 4 . 2 . 1 6 . 23 16 5 43 5 3 6 3 2 8 2 Burn 31 | . 7 7 2 1 7 3 4 . . . . . . . . . . . . . . . . . . . . . . . . . . . Meltdown 14 | . . . . . . . . . . 2 1 . . 1 . . 2 . . . . 2 . . . . . . 1 . 1 1 1 2 Destroy 78 | . . . . . . . . . . . . . . . 1 . . . . . . . . 22 16 3 30 1 1 3 . 1 . . Blast 34 | . . . . . . . . . . . . . . . . . 2 . 2 . 1 4 . 1 . 2 13 4 . 3 2 . . . Detonate 8 | . . . . . . . . . . . . . . . . . . . . . . . . . . . . . 1 . . . 7 . Melee Attacks 27 | . . . 1 . 2 3 3 . . . . . 16 . 1 . 1 . . . . . . . . . . . . . . . . . Impact . | . . . . . . . . . . . . . . . . . . . . . . . . . . . . . . . . . . . Slashing 20 | . . . 1 . 2 3 3 . . . . . 10 . . . 1 . . . . . . . . . . . . . . . . . Piercing . | . . . . . . . . . . . . . . . . . . . . . . . . . . . . . . . . . . . Sneak Attacks 17 | . . . . . . . . . . . . . 15 . 1 . 1 . . . . . . . . . . . . . . . . . Combat Hostiles . | . . . . . . . . . . . . . . . . . . . . . . . . . . . . . . . . . . . Follow-up Attacks . | . . . . . . . . . . . . . . . . . . . . . . . . . . . . . . . . . . . Damage Inflicted 121405 | 91 871 475 1941 150 3575 1547 3902 928 2914 8997 3787 1331 1227 1313 2418 3561 6244 1405 1248 . 1818 4157 32 5298 1853 2509 7876 1944 2800 4853 7346 1940 12129 18925 Guns 22340 | 91 871 469 954 150 2620 839 1390 430 . . . . 47 396 765 . 23 . . . . . . 3967 1720 561 62 1241 1349 811 . 508 3076 . Cannons 57462 | . . . 648 . . . . 498 156 6047 3192 1331 284 771 1319 . 4236 975 1248 . 728 3573 32 420 133 1948 4033 703 1129 3846 3768 1432 5248 9764 Explosions 40535 | . . . 339 . 955 706 2512 . 2758 2950 595 . . 146 334 3561 1910 430 . . 1090 584 . 900 . . 3781 . 290 150 3578 . 3805 9161 Melee 971 | . . . . . . . . . . . . . 896 . . . 75 . . . . . . . . . . . . . . . . . Ramming 97 | . . 6 . . . 2 . . . . . . . . . . . . . . . . . 11 . . . . 32 46 . . . . Kinetic 21634 | . . 58 217 . . . . . . . . . . . 75 . 329 348 414 . 427 1563 32 4387 1853 2509 4095 1580 1270 1587 890 . . . Thermal 68916 | 91 871 411 1379 150 2620 839 1390 928 156 6047 3192 1331 331 1167 2258 . 3930 627 834 . 301 2010 . . . . . . 1243 3220 3231 1940 9494 18925 Explosive 26071 | . . . 299 . 955 706 2512 . 2758 2950 595 . . 146 . 3561 1910 430 . . 1090 539 . 614 . . 3781 . . . 3225 . . . Electromagnetic 462 | . . . 46 . . . . . . . . . . . 85 . . . . . . 45 . 286 . . . . . . . . . . Impact . | . . . . . . . . . . . . . . . . . . . . . . . . . . . . . . . . . . . Slashing 971 | . . . . . . . . . . . . . 896 . . . 75 . . . . . . . . . . . . . . . . . Piercing . | . . . . . . . . . . . . . . . . . . . . . . . . . . . . . . . . . . . Entropic 3254 | . . . . . . . . . . . . . . . . . . . . . . . . . . . . 364 255 . . . 2635 . Highest Corruption 20 | . 1 1 . . . 2 2 . 6 8 8 8 8 11 1 12 20 4 4 4 6 5 5 10 11 15 15 . 1 5 . . 1 2 Average Corruption 5 | . 1 1 . . . 1 2 . 5 6 8 8 4 4 1 7 6 4 4 4 5 4 5 5 10 12 15 . 1 2 . . 1 1 Corruption Purged 34 | . . . . . . . . . . . . . 8 . . . 25 . . . . . . . . . . . . . . . 1 . Corruption Blocked . | . . . . . . . . . . . . . . . . . . . . . . . . . . . . . . . . . . . Effects 620 | . 2 7 . . . 9 10 . 6 56 58 16 7 . 3 7 94 31 31 5 33 28 13 44 44 50 3 . 9 40 . . 10 4 Message Errors 155 | . 1 2 . . . 6 4 . 1 19 12 2 3 . . 3 23 5 8 2 7 5 2 10 10 12 2 . 2 12 . . 1 1 Matter Fused 142 | . . . . . . 1 . . 1 11 18 3 2 . 1 1 26 11 5 1 10 7 4 10 12 9 . . . 6 . . 2 1 Heat Flow Errors 71 | . . . . . . 1 3 . 1 5 7 1 . . . . 9 2 6 . 5 4 . 4 4 5 . . 3 9 . . 2 . Energy Discharges 67 | . . 2 . . . . 1 . 1 4 5 2 2 . . 2 9 4 1 . 2 5 4 5 7 3 1 . 1 3 . . 2 1 Parts Rejected 8 | . . . . . . . . . . 1 . 1 . . 1 . . 1 . . . . . 1 . 1 . . . 2 . . . . Parts Fused 8 | . . . . . . . . . . . . 1 . . . . . . . . 1 1 . . 1 3 . . . 1 . . . . Data Loss (minor) 76 | . . 3 . . . . 2 . . 5 10 4 . . 1 . 13 4 5 1 7 . 1 4 2 8 . . 1 4 . . . 1 Data Loss (major) 32 | . 1 . . . . . . . . 5 2 1 . . . . 6 1 2 . . 4 1 1 3 2 . . . 2 . . 1 . Misfires 26 | . . . . . . . . . 1 3 1 . . . . . 4 2 3 . 1 1 1 5 1 1 . . . 1 . . 1 . Alerts 10 | . . . . . . 1 . . . . 1 . . . . . 2 1 . 1 . . . . 1 1 . . 2 . . . . . Weapon Failures 25 | . . . . . . . . . 1 3 2 1 . . . 1 2 . 1 . . 1 . 4 3 5 . . . . . . 1 . Overload Shots 42 | . . . . . . . . . 2 13 2 13 . 1 . . . . . . . . . . . . . . . . . 2 7 2 Effects 6 | . . . . . . . . . . . 1 1 . . . . . . . . . . . . . . . . . . . 1 3 . Heat Surge 5 | . . . . . . . . . . . 1 1 . . . . . . . . . . . . . . . . . . . 1 2 . Short Circuit 1 | . . . . . . . . . . . . . . . . . . . . . . . . . . . . . . . . . 1 . Overflow Damage 3500 | . . . . . 5 25 91 30 . 266 4 16 266 3 122 . 205 54 44 . 9 117 . 21 . . 129 . 40 234 484 13 366 956 Projectiles 1863 | . . . . . . . . 30 . 195 4 16 . 3 56 . 92 54 44 . 9 80 . . . . 26 . 33 234 142 13 110 722 Explosions 1336 | . . . . . 5 25 91 . . 71 . . . . 66 . 78 . . . . 37 . 21 . . 103 . 7 . 342 . 256 234 Melee 301 | . . . . . . . . . . . . . 266 . . . 35 . . . . . . . . . . . . . . . . . Knockbacks 52 | . . . . . . . . . . . . . . . . . . 1 2 . 2 12 . 6 1 12 6 3 1 3 3 . . . Impact 1 | . . . . . . . . . . . . . . . . . . . . . . . . . . . . . 1 . . . . . Kinetic 51 | . . . . . . . . . . . . . . . . . . 1 2 . 2 12 . 6 1 12 6 3 . 3 3 . . . Secondary . | . . . . . . . . . . . . . . . . . . . . . . . . . . . . . . . . . . . Self-Inflicted Damage 2061 | . . 3 39 . 91 . . . 8 141 41 . . . 490 86 227 . . . 60 6 . 11 . . 57 . 66 33 73 . 168 461 Shots 45 | . . . 1 . 3 . . . 1 5 1 . . . 8 2 4 . . . 1 1 . 1 . . 4 . 1 1 1 . 2 8 Rammed 9 | . . 1 . . . 1 . . . . . . . . . . . . . . . . . 2 . . . . 3 2 . . . . Targets Rammed 9 | . . 1 . . . 1 . . . . . . . . . . . . . . . . . 2 . . . . 3 2 . . . . Kicked . | . . . . . . . . . . . . . . . . . . . . . . . . . . . . . . . . . . . Crushed . | . . . . . . . . . . . . . . . . . . . . . . . . . . . . . . . . . . . Highest Temperature 479 | 120 340 195 349 264 342 142 276 320 116 378 349 288 30 271 164 . 479 195 435 . 181 372 2 226 264 245 11 . 252 402 7 222 420 293 Average Temperature 98 | 55 85 50 93 109 115 74 91 137 44 100 113 122 20 93 28 . 99 93 104 . 60 118 2 83 123 68 5 . 68 96 7 63 89 135 Received Heat Transfer 4948 | . 183 84 222 . 435 159 104 32 . 388 407 . 6 195 126 . 800 87 46 . 39 102 . 177 69 247 267 99 302 83 88 121 80 . Effects 26 | . 1 . 1 . . . . 1 . 5 6 . . 1 . . 2 . 1 . . 1 . . . . . . 1 3 . . . 3 Shutdowns 4 | . 1 . . . . . . . . . 1 . . . . . 1 . . . . . . . . . . . . 1 . . . . Energy Bleed 8 | . . . 1 . . . . . . 2 2 . . . . . 1 . . . . 1 . . . . . . 1 . . . . . Interference 10 | . . . . . . . . . . 3 2 . . 1 . . . . . . . . . . . . . . . 1 . . . 3 Matter Decay 2 | . . . . . . . . . . . . . . . . . . . 1 . . . . . . . . . . 1 . . . . Short Circuit 2 | . . . . . . . . 1 . . 1 . . . . . . . . . . . . . . . . . . . . . . . Siege Activations 72 | . . . . . . . . . . 1 . . . 1 1 . 9 4 4 . 4 8 . 6 5 4 2 3 . 5 4 1 6 4 Total Turns 1411 | . . . . . . . . . . 12 . . . 15 7 . 346 61 56 . 56 145 . 96 84 93 59 50 . 70 73 29 113 46 Longest Duration 109 | . . . . . . . . . . 12 . . . 15 7 . 109 30 18 . 29 35 . 24 36 41 45 18 . 31 27 29 48 19 Martial Activations . | . . . . . . . . . . . . . . . . . . . . . . . . . . . . . . . . . . . Shielding Activations . | . . . . . . . . . . . . . . . . . . . . . . . . . . . . . . . . . . . Robots Disrupted 3 | . . . . . . . . . . . . . . . . . . . . . . . . 1 . . . . . . 1 1 . . Combat Hostiles 3 | . . . . . . . . . . . . . . . . . . . . . . . . 1 . . . . . . 1 1 . . Robots Corrupted 1 | . . . . . . . . . . . . . . . . . . . . . . . . 1 . . . . . . . . . . Combat Hostiles 1 | . . . . . . . . . . . . . . . . . . . . . . . . 1 . . . . . . . . . . Parts Fried 5 | . . . . . . . . . . . . . . . 1 . . . . . . . . . 1 . . . . . 3 . . . Impact Corruptions . | . . . . . . . . . . . . . . . . . . . . . . . . . . . . . . . . . . . Robots Melted 26 | . . . . . . . . 1 . 5 2 . . 1 2 . 4 1 . . . 3 . . . . . . 1 . 2 1 1 2 Combat Hostiles 21 | . . . . . . . . 1 . 3 2 . . 1 2 . 3 1 . . . 3 . . . . . . . . 1 1 1 2 Parts Melted 134 | . 7 5 7 . 7 3 4 9 . 23 12 3 . 8 7 . 19 2 . . . 5 . . . . . . 2 1 3 2 4 1 Heat Transferred 68332 | 236 2989 1739 2701 333 5402 1776 2514 1559 230 8810 4905 1810 524 1656 3006 . 5010 833 1094 . 361 2664 . . . . . . 1240 1321 1323 1665 4616 8015 Parts Sabotaged 10 | . . . . . . . . . . . . . . . . . . . . . . . . . . . 10 . . . . . . . Parts Stolen . | . . . . . . . . . . . . . . . . . . . . . . . . . . . . . . . . . . . Parts Stripped . | . . . . . . . . . . . . . . . . . . . . . . . . . . . . . . . . . . . Power Chain Reactions 4 | . . . 1 . . . . . . . . . . . . . . . . . . . . . . . . . . 1 2 . . . Alert | -11 -10 -10 -9 -9 -8 -7 -7 -6 -6 -6 -6 -6 -6 -6 -5 -5 -5 -5 -5 -5 -4 -4 -4 -4 -4 -4 -4 -3 -3 -3 -2 -1 -1 -1 ------- Run | Yrd Mat Min Mat Min Mat Fac Gar Fac Was Fac Ext Cet Arc Hub Fac Was Fac Upp Upp Zhi Pro Fac Was Fac Upp Upp War Pro Res Tes Res Acc Com Ac0 Maximum Alert Level 5 | . . . 2 . 2 1 2 1 . 2 3 2 1 5 3 2 2 . . . . 3 1 5 . . . . 1 2 1 2 4 . Low Security (%) 46 | 100 100 100 37 100 33 83 8 . 100 38 53 . 22 34 . . 66 . . . . 26 76 29 . . . . 88 59 50 48 . . Level 1 21 | . . . 49 . 19 16 22 100 . 10 29 . 77 5 . 30 32 . . . . 32 23 13 . . . . 11 35 49 8 1 . Level 2 17 | . . . 12 . 46 . 68 . . 51 12 100 . 12 60 69 1 . . . . 34 . 9 . . . . . 4 . 43 12 . Level 3 3 | . . . . . . . . . . . 4 . . 3 39 . . . . . . 6 . 2 . . . . . . . . 13 . Level 4 10 | . . . . . . . . . . . . . . 38 . . . . . . . . . 14 . . . . . . . . 72 . Level 5 . | . . . . . . . . . . . . . . 5 . . . . . . . . . 18 . . . . . . . . . . High Security . | . . . . . . . . . . . . . . . . . . . . . . . . 12 . . . . . . . . . . Max Security . | . . . . . . . . . . . . . . . . . . . . . . . . . . . . . . . . . . . Peak Influence 2316 | 10 70 70 434 158 672 303 672 373 104 544 1053 639 324 1649 1019 451 652 . . . . 780 267 2316 . . . . 228 452 384 477 1072 . Initial 728 | . 3 . . 158 21 303 149 352 91 . 196 585 203 53 728 345 283 . . . . 44 267 . . . . . . 72 180 192 294 . Average 285 | 1 20 5 228 41 320 122 432 316 53 282 270 555 248 763 698 409 159 . . . . 338 128 918 . . . . 87 176 197 303 692 . Influence Increases 25916 | 15 294 125 934 101 1208 412 543 190 38 1327 1817 346 241 2220 720 140 1347 250 95 . 350 1136 . 3496 215 360 801 150 570 1065 822 555 1362 2671 Destroy 0b10 Robot/C 11480 | . 180 100 600 60 740 260 220 120 . 640 840 160 80 600 240 . 660 240 80 . 300 480 . 1200 160 320 780 120 260 600 480 340 620 . Destroy 0b10 Robot/NC 850 | 15 20 5 70 5 75 40 . . . 150 20 10 30 65 25 . 55 . 5 . 5 25 . 55 10 5 5 . 25 45 45 5 35 . Destroy Leader 2140 | . 42 20 152 10 208 56 20 60 . 190 74 . . 186 46 . 158 10 10 . 40 86 . 234 30 20 . 30 64 86 114 80 114 . Allied During Kill 2799 | . . . . 11 24 . . . . 13 764 170 110 801 . . 6 . . . 5 . . 879 . . 16 . . . . . . . Trap Triggered on 0b10 40 | . . . . . . . . . . . . . . . . . 10 . . . . 30 . . . . . . . . . . . . Successful Hack 819 | . 21 . 18 . 30 14 14 . . 47 12 . . 52 30 . 121 . . . . 139 . 115 . . . . 60 38 . 66 42 . Select Force Hacks 100 | . . . . . . . . . . . . . . 100 . . . . . . . . . . . . . . . . . . . . Disable Machine 1545 | . . . 45 15 45 15 . . . 120 45 . 15 90 255 . 75 . . . . 135 . 330 . . . . 45 150 45 . 60 60 Anti-Garrison Action 550 | . . . . . . . 200 . . . . . . 150 . . . . . . . . . 150 . . . . . . . . 50 . Destroy Structure 5158 | . 1 . 34 . 71 27 59 10 38 137 62 6 6 86 124 140 202 . . . . 226 . 458 . . . . 86 146 123 64 441 2611 Partial Spotted 30 | . . . . . . . . . . . . . . 15 . . . . . . . . . 15 . . . . . . . . . . Lose Combat Pursuer 405 | . 30 . 15 . 15 . 30 . . 30 . . . 75 . . 60 . . . . 15 . 60 15 15 . . 30 . 15 . . . Influence Decreases 23505 | 10 299 125 527 452 595 868 84 600 300 927 1170 884 596 887 1221 721 1609 393 95 . 278 443 765 1180 1356 796 929 761 441 872 824 414 645 1438 Entered New Map 8485 | . 2 . . 249 35 366 64 320 171 . 204 462 306 101 759 641 122 53 . . . 28 498 . 858 224 739 611 . 57 142 128 167 1178 Time Decay 10891 | 10 297 95 527 203 470 502 . 270 129 537 556 262 230 246 422 80 727 330 95 . 278 405 267 430 478 482 130 140 411 626 542 286 428 . Lost Part 880 | . . 30 . . 30 . 20 10 . 70 30 . 20 20 40 . 80 10 . . . 10 . 30 20 90 20 10 30 . . . 50 260 Lost Ally 1110 | . . . . . 60 . . . . 20 80 160 40 220 . . 80 . . . . . . 270 . . 40 . . . 140 . . . Purge Threat 2139 | . . . . . . . . . . 300 300 . . 300 . . 600 . . . . . . 450 . . . . . 189 . . . . Squads Dispatched 123 | . 2 . 2 . 11 4 . 6 . 12 . . . 14 4 . 14 . . . . 7 . 15 . 1 . . 6 7 3 7 8 . Investigation 16 | . . . . . 1 . . 1 . 1 . . . 4 . . 3 . . . . . . 2 . . . . 3 . . . 1 . Extermination 31 | . . . . . . 2 . 2 . 5 . . . 1 1 . 6 . . . . 3 . 2 . . . . . 5 . 2 2 . Reinforcement 41 | . 2 . 2 . 5 1 . . . 4 . . . 3 2 . 5 . . . . 3 . 3 . . . . 3 2 3 2 1 . Assault 22 | . . . . . 2 . . . . 2 . . . 4 1 . . . . . . 1 . 7 . 1 . . . . . . 4 . Garrison 13 | . . . . . 3 1 . 3 . . . . . 2 . . . . . . . . . 1 . . . . . . . 3 . . Intercept . | . . . . . . . . . . . . . . . . . . . . . . . . . . . . . . . . . . . Searches Triggered . | . . . . . . . . . . . . . . . . . . . . . . . . . . . . . . . . . . . Construction Impeded 4 | . . . . . 1 1 . . . . . . . . . . . . . . . . . 1 . . . . . 1 . . . . Haulers Reinforced 12 | . . . . . . . . . . 2 . . . 1 2 . 1 . . . . 1 . 2 . . . . 1 . 2 . . . Active Scanning Responses . | . . . . . . . . . . . . . . . . . . . . . . . . . . . . . . . . . . . Cargo Convoy Interrupts . | . . . . . . . . . . . . . . . . . . . . . . . . . . . . . . . . . . . Stealth | -11 -10 -10 -9 -9 -8 -7 -7 -6 -6 -6 -6 -6 -6 -6 -5 -5 -5 -5 -5 -5 -4 -4 -4 -4 -4 -4 -4 -3 -3 -3 -2 -1 -1 -1 --------- Run | Yrd Mat Min Mat Min Mat Fac Gar Fac Was Fac Ext Cet Arc Hub Fac Was Fac Upp Upp Zhi Pro Fac Was Fac Upp Upp War Pro Res Tes Res Acc Com Ac0 Distress Signals 50 | . . . 1 . 2 2 . . . 2 1 1 . 2 . . 1 . . . . . . . . . . . 6 1 7 4 20 . Communications Jammed 291 | . . . . . . . . . . 60 1 . . 65 11 . 4 . . . . 10 . 139 1 . . . . . . . . . Distress Signals 282 | . . . . . . . . . . 55 1 . . 61 11 . 4 . . . . 10 . 139 1 . . . . . . . . . Times Spotted 841 | . 17 6 36 3 49 21 48 7 6 46 39 10 10 40 13 6 46 11 5 . 14 37 . 59 8 21 70 6 28 39 40 17 43 40 Peak Tracking Total 16 | . 5 3 3 3 9 5 11 1 5 8 8 5 2 8 3 4 10 5 2 . 4 5 . 7 2 8 16 2 8 5 5 6 8 5 Tactical Retreats 28 | . 2 . 1 . 1 . 3 1 . 2 . . . 4 . . 3 . . . . 1 . 4 1 1 . . 2 . 1 . 1 . Traps | -11 -10 -10 -9 -9 -8 -7 -7 -6 -6 -6 -6 -6 -6 -6 -5 -5 -5 -5 -5 -5 -4 -4 -4 -4 -4 -4 -4 -3 -3 -3 -2 -1 -1 -1 ------- Run | Yrd Mat Min Mat Min Mat Fac Gar Fac Was Fac Ext Cet Arc Hub Fac Was Fac Upp Upp Zhi Pro Fac Was Fac Upp Upp War Pro Res Tes Res Acc Com Ac0 Traps Triggered 26 | . 1 . . . 1 . 4 2 . . . . . . 1 . 3 . . . . 4 . 2 . . . . 1 4 . 1 2 . Indirectly . | . . . . . . . . . . . . . . . . . . . . . . . . . . . . . . . . . . . Trap Hack Attempts . | . . . . . . . . . . . . . . . . . . . . . . . . . . . . . . . . . . . Triggered . | . . . . . . . . . . . . . . . . . . . . . . . . . . . . . . . . . . . Disarmed . | . . . . . . . . . . . . . . . . . . . . . . . . . . . . . . . . . . . Reprogrammed 12 | . . . . . . . . . . . . . . . . . 2 . . . . 4 . 6 . . . . . . . . . . Reused 5 | . . . . . . . . . . . . . . . . . 1 . . . . 3 . . . 1 . . . . . . . . Traps Extracted . | . . . . . . . . . . . . . . . . . . . . . . . . . . . . . . . . . . . Installed 1 | . . . . . . . . . . . . . . . . . . . . . . . . . . 1 . . . . . . . . Triggered 5 | . . . . . . . . . . . . . . . . . 1 . . . . 3 . . . 1 . . . . . . . . Most Traps Carried 2 | . . . . . . . . . . . . . . . . . . . . . . . . . 2 2 1 1 1 . . . . . Machines | -11 -10 -10 -9 -9 -8 -7 -7 -6 -6 -6 -6 -6 -6 -6 -5 -5 -5 -5 -5 -5 -4 -4 -4 -4 -4 -4 -4 -3 -3 -3 -2 -1 -1 -1 ---------- Run | Yrd Mat Min Mat Min Mat Fac Gar Fac Was Fac Ext Cet Arc Hub Fac Was Fac Upp Upp Zhi Pro Fac Was Fac Upp Upp War Pro Res Tes Res Acc Com Ac0 Machines Disabled 119 | . . . 3 1 3 1 2 . . 8 6 . 1 7 17 . 5 2 1 . . 9 . 23 . 1 1 . 3 12 3 . 6 4 Max in Single Turn 12 | . . . 1 1 1 1 1 . . 2 2 . 1 1 12 . 1 1 1 . . 2 . 3 . 1 1 . 1 1 1 . 2 1 Garrison Access 11 | . . . . . . . . . . . . . . 2 2 . 2 . . . . . . 2 . . . . . . 3 . . . Garrison Relay 2 | . . . . . . . 2 . . . . . . . . . . . . . . . . . . . . . . . . . . . Phase Generator 1 | . . . . . . . . . . . . . . . . . . . . . . . . . . . . . . . . . 1 . Network Hub 3 | . . . . . . . . . . . . . . 3 . . . . . . . . . . . . . . . . . . . . Energy Cycler 2 | . . . . . . . . . . . 2 . . . . . . . . . . . . . . . . . . . . . . . Machines Repaired . | . . . . . . . . . . . . . . . . . . . . . . . . . . . . . . . . . . . Machines Dismantled 1 | . . . . . . . . . . . . . . . . . . . . . . . . . . . 1 . . . . . . . Machines Sabotaged 2 | . . . . . . . . . . . . . . 2 . . . . . . . . . . . . . . . . . . . . Overloaded Fab Kills . | . . . . . . . . . . . . . . . . . . . . . . . . . . . . . . . . . . . Hacking | -11 -10 -10 -9 -9 -8 -7 -7 -6 -6 -6 -6 -6 -6 -6 -5 -5 -5 -5 -5 -5 -4 -4 -4 -4 -4 -4 -4 -3 -3 -3 -2 -1 -1 -1 --------- Run | Yrd Mat Min Mat Min Mat Fac Gar Fac Was Fac Ext Cet Arc Hub Fac Was Fac Upp Upp Zhi Pro Fac Was Fac Upp Upp War Pro Res Tes Res Acc Com Ac0 Machines Accessed 142 | . 5 . 7 . 8 7 1 5 . 14 8 1 . 11 6 . 19 2 . 4 . 7 . 9 1 1 4 . 5 8 1 5 3 . Terminals 97 | . 5 . 6 . 7 4 1 2 . 11 8 1 . 10 3 . 9 1 . . . 6 . 4 . . . . 3 8 . 5 3 . Fabricators 14 | . . . . . . 2 . 2 . 2 . . . . 1 . 3 . . . . 1 . 2 . . . . 1 . . . . . Repair Stations 7 | . . . . . . . . . . 1 . . . . . . 3 . . . . . . 2 . . . . 1 . . . . . Recycling Units . | . . . . . . . . . . . . . . . . . . . . . . . . . . . . . . . . . . . Scanalyzers 2 | . . . 1 . 1 . . . . . . . . . . . . . . . . . . . . . . . . . . . . . Garrison Access 11 | . . . . . . 1 . 1 . . . . . 1 2 . 4 . . . . . . 1 . . . . . . 1 . . . Total Hacks 509 | . 15 . 21 . 22 14 2 9 . 29 16 1 . 26 21 . 95 7 . 17 . 47 . 54 1 1 8 . 19 49 2 25 8 . Successful 257 | . 7 . 7 . 13 4 1 4 . 16 9 1 . 15 7 . 46 7 . 17 . 30 . 35 1 1 8 . 8 9 1 7 3 . Failed 250 | . 8 . 13 . 8 10 1 5 . 13 7 . . 11 14 . 49 . . . . 17 . 19 . . . . 11 40 1 18 5 . Catastrophic 54 | . 1 . 3 . 2 1 . 1 . 2 3 . . 2 1 . 11 . . . . 5 . 2 . . . . 4 10 . 6 . . Database Lockouts 2 | . . . 1 . 1 . . . . . . . . . . . . . . . . . . . . . . . . . . . . . Manual 228 | . 7 . 14 . 13 7 1 3 . 21 9 1 . 17 13 . 25 . . . . 23 . 21 . . . . 7 26 . 13 7 . Terminals 361 | . 15 . 20 . 20 7 2 3 . 21 16 1 . 24 8 . 54 6 . . . 39 . 30 . . . . 13 49 . 25 8 . Fabricators 59 | . . . . . . 5 . 5 . 7 . . . . 9 . 13 . . . . 8 . 10 . . . . 2 . . . . . Repair Stations 32 | . . . . . . . . . . 1 . . . . . . 16 . . . . . . 11 . . . . 4 . . . . . Recycling Units . | . . . . . . . . . . . . . . . . . . . . . . . . . . . . . . . . . . . Scanalyzers 3 | . . . 1 . 2 . . . . . . . . . . . . . . . . . . . . . . . . . . . . . Garrison Access 26 | . . . . . . 2 . 1 . . . . . 2 4 . 12 . . . . . . 3 . . . . . . 2 . . . Terminal Hacks 132 | . 4 . 5 . 9 1 1 . . 8 7 1 . 6 . . 17 7 . 17 . 15 . 12 1 1 8 . 4 4 . 3 1 . Record 18 | . . . . . . . . . . . . . . . . . . 6 . 5 . . . . . . 7 . . . . . . . Part Schematic 7 | . . . . . . . . . . . . . . 1 . . 2 . . 4 . . . . . . . . . . . . . . Robot Analysis 9 | . . . 2 . 1 . . . . . . . . . . . . . . 4 . 2 . . . . . . . . . . . . Prototype ID Bank 13 | . 3 . . . 1 . . . . 2 1 . . . . . . . . 4 . . . 2 . . . . . . . . . . Open Door 12 | . . . . . . . . . . 1 4 1 . . . . . 1 . . . . . . 1 1 1 . . . . 1 1 . Level Access Points 1 | . . . . . . . . . . . . . . 1 . . . . . . . . . . . . . . . . . . . . Branch Access Points 7 | . . . 1 . 1 . . . . 1 . . . . . . 1 . . . . 1 . 1 . . . . 1 . . . . . Emergency Access Points 4 | . . . . . 1 . 1 . . . . . . . . . 1 . . . . . . . . . . . 1 . . . . . Machine Index 3 | . . . . . . . . . . . . . . . . . 1 . . . . 1 . 1 . . . . . . . . . . Terminal Index 7 | . . . . . 1 . . . . 1 . . . 1 . . 1 . . . . 1 . . . . . . 1 . . 1 . . Alert Level 9 | . . . . . . 1 . . . . . . . 1 . . 2 . . . . 2 . 1 . . . . . 2 . . . . Unreport Threat 15 | . . . . . . . . . . 2 2 . . 2 . . 4 . . . . . . 3 . . . . . 2 . . . . Locate Traps 5 | . . . 1 . 1 . . . . . . . . . . . . . . . . 2 . 1 . . . . . . . . . . Reprogram Traps 3 | . . . . . . . . . . . . . . . . . 1 . . . . 1 . 1 . . . . . . . . . . Dispatch Records 1 | . . . . . . . . . . . . . . . . . . . . . . 1 . . . . . . . . . . . . Patrol Status 3 | . . . . . . . . . . . . . . . . . . . . . . 2 . . . . . . 1 . . . . . Recall Extermination 3 | . . . . . . . . . . . . . . . . . 2 . . . . . . . . . . . . . . 1 . . Recall Reinforcements 2 | . . . . . . . . . . . . . . . . . 1 . . . . 1 . . . . . . . . . . . . Hauler Manifests 6 | . 1 . 1 . 1 . . . . 1 . . . . . . 1 . . . . 1 . . . . . . . . . . . . Zone Layout 4 | . . . . . 2 . . . . . . . . . . . . . . . . . . 2 . . . . . . . . . . Fabricator Hacks 19 | . . . . . . 1 . 2 . 1 . . . . 1 . 6 . . . . 3 . 4 . . . . 1 . . . . . Network Status 8 | . . . . . . 1 . 1 . 1 . . . . 1 . 1 . . . . 1 . 1 . . . . 1 . . . . . Load Schematic 6 | . . . . . . . . . . . . . . . . . 3 . . . . 1 . 2 . . . . . . . . . . Build 5 | . . . . . . . . 1 . . . . . . . . 2 . . . . 1 . 1 . . . . . . . . . . Repair Station Hacks 15 | . . . . . . . . . . . . . . . . . 8 . . . . . . 7 . . . . . . . . . . Scan Component 9 | . . . . . . . . . . . . . . . . . 5 . . . . . . 4 . . . . . . . . . . Repair 6 | . . . . . . . . . . . . . . . . . 3 . . . . . . 3 . . . . . . . . . . Recycling Unit Hacks . | . . . . . . . . . . . . . . . . . . . . . . . . . . . . . . . . . . . Scanalyzer 2 | . . . . . 2 . . . . . . . . . . . . . . . . . . . . . . . . . . . . . Insert Component 1 | . . . . . 1 . . . . . . . . . . . . . . . . . . . . . . . . . . . . . Analyze 1 | . . . . . 1 . . . . . . . . . . . . . . . . . . . . . . . . . . . . . Garrison Access Hacks 7 | . . . . . . 1 . . . . . . . . 2 . 2 . . . . . . 1 . . . . . . 1 . . . Unlock Access 1 | . . . . . . 1 . . . . . . . . . . . . . . . . . . . . . . . . . . . . Seal Access 6 | . . . . . . . . . . . . . . . 2 . 2 . . . . . . 1 . . . . . . 1 . . . Unauthorized Hacks 82 | . 3 . 2 . 2 1 . 2 . 7 2 . . 9 4 . 13 . . . . 12 . 11 . . . . 3 5 . 4 2 . Terminals 56 | . 3 . 2 . 2 1 . 1 . 2 2 . . 9 1 . 7 . . . . 8 . 5 . . . . 2 5 . 4 2 . Track 11 | . . . . . . . . . . . . . . 1 . . 3 . . . . 3 . 1 . . . . . 2 . 1 . . Botnet 37 | . 2 . 2 . 2 1 . 1 . 2 2 . . 4 1 . 3 . . . . 4 . 4 . . . . 2 2 . 3 2 . Disrupt 1 | . . . . . . . . . . . . . . . . . . . . . . . . . . . . . . 1 . . . . Operators 3 | . 1 . . . . . . . . . . . . . . . 1 . . . . 1 . . . . . . . . . . . . Sabotage 4 | . . . . . . . . . . . . . . 4 . . . . . . . . . . . . . . . . . . . . Fabricators 23 | . . . . . . . . 1 . 4 . . . . 3 . 5 . . . . 4 . 5 . . . . 1 . . . . . Report 5 | . . . . . . . . . . 1 . . . . 1 . 1 . . . . 1 . 1 . . . . . . . . . . Prioritize 3 | . . . . . . . . . . . . . . . . . 1 . . . . 1 . 1 . . . . . . . . . . Liberate 6 | . . . . . . . . . . 2 . . . . 1 . 1 . . . . 1 . 1 . . . . . . . . . . Haulers 6 | . . . . . . . . 1 . 1 . . . . 1 . . . . . . 1 . 1 . . . . 1 . . . . . Recompile 3 | . . . . . . . . . . . . . . . . . 2 . . . . . . 1 . . . . . . . . . . Repair Stations 3 | . . . . . . . . . . 1 . . . . . . 1 . . . . . . 1 . . . . . . . . . . Patch 3 | . . . . . . . . . . 1 . . . . . . 1 . . . . . . 1 . . . . . . . . . . Recycling Units . | . . . . . . . . . . . . . . . . . . . . . . . . . . . . . . . . . . . Scanalyzers . | . . . . . . . . . . . . . . . . . . . . . . . . . . . . . . . . . . . Garrison Access . | . . . . . . . . . . . . . . . . . . . . . . . . . . . . . . . . . . . Data Cores Recovered 5 | . . . 2 . . 1 . . . . . . . . . . . . . . . . . . . . . . . 1 . . 1 . Used 3 | . . . 1 . . 1 . . . . . . . . . . . . . . . . . . . . . . . 1 . . . . Hacking Detections 105 | . 5 . 6 . 8 7 1 5 . 12 5 . . 7 4 . 14 . . . . 6 . 6 . . . . 5 7 . 4 3 . Full Trace Events 1 | . . . . . . . . . . . . . . . . . . . . . . . . . . . . . 1 . . . . . Feedback Events . | . . . . . . . . . . . . . . . . . . . . . . . . . . . . . . . . . . . Feedback Blocked . | . . . . . . . . . . . . . . . . . . . . . . . . . . . . . . . . . . . Robot Schematics Acquired . | . . . . . . . . . . . . . . . . . . . . . . . . . . . . . . . . . . . Robots Built . | . . . . . . . . . . . . . . . . . . . . . . . . . . . . . . . . . . . Authchips . | . . . . . . . . . . . . . . . . . . . . . . . . . . . . . . . . . . . Time . | . . . . . . . . . . . . . . . . . . . . . . . . . . . . . . . . . . . Total Robot Build Rating . | . . . . . . . . . . . . . . . . . . . . . . . . . . . . . . . . . . . Part Schematics Acquired 8 | . . . . . 1 . . . . . . . . 1 . . 2 . . 4 . . . . . . . . . . . . . . Parts Built 4 | . . . . . . . . . . . . . . . . . 3 . . . . 1 . . . . . . . . . . . . Authchips 3 | . . . . . . . . . . . . . . . . . 1 . . . . 1 . 1 . . . . . . . . . . Time 366 | . . . . . . . . 117 . . . . . . . . 123 . . . . 84 . 42 . . . . . . . . . . Total Part Build Rating 26 | . . . . . . . . . . . . . . . . . 20 . . . . 6 . . . . . . . . . . . . Parts Repaired 6 | . . . . . . . . . . . . . . . . . 3 . . . . . . 3 . . . . . . . . . . Time 383 | . . . . . . . . . . . . . . . . . 278 . . . . . . 105 . . . . . . . . . . Parts Recycled . | . . . . . . . . . . . . . . . . . . . . . . . . . . . . . . . . . . . Recycled Matter . | . . . . . . . . . . . . . . . . . . . . . . . . . . . . . . . . . . . Retrieved Matter . | . . . . . . . . . . . . . . . . . . . . . . . . . . . . . . . . . . . Retrieved Components . | . . . . . . . . . . . . . . . . . . . . . . . . . . . . . . . . . . . Parts Scanalyzed 1 | . . . . . 1 . . . . . . . . . . . . . . . . . . . . . . . . . . . . . Part Schematics Acquired 1 | . . . . . 1 . . . . . . . . . . . . . . . . . . . . . . . . . . . . . Parts Damaged . | . . . . . . . . . . . . . . . . . . . . . . . . . . . . . . . . . . . Bothacking | -11 -10 -10 -9 -9 -8 -7 -7 -6 -6 -6 -6 -6 -6 -6 -5 -5 -5 -5 -5 -5 -4 -4 -4 -4 -4 -4 -4 -3 -3 -3 -2 -1 -1 -1 ------------ Run | Yrd Mat Min Mat Min Mat Fac Gar Fac Was Fac Ext Cet Arc Hub Fac Was Fac Upp Upp Zhi Pro Fac Was Fac Upp Upp War Pro Res Tes Res Acc Com Ac0 Used RIF Installer . | . . . . . . . . . . . . . . . . . . . . . . . . . . . . . . . . . . . Robots Hacked 6 | . . . . . . . . . . . . . 4 . 1 . . . . . . . . . . . . . . . . . 1 . Non-combat 2 | . . . . . . . . . . . . . 1 . 1 . . . . . . . . . . . . . . . . . . . Combat 3 | . . . . . . . . . . . . . 3 . . . . . . . . . . . . . . . . . . . . . Robot Hacks Applied 7 | . . . . . . . . . . . . . 6 . 1 . . . . . . . . . . . . . . . . . . . parse_system 4 | . . . . . . . . . . . . . 4 . . . . . . . . . . . . . . . . . . . . . find_chute 1 | . . . . . . . . . . . . . . . 1 . . . . . . . . . . . . . . . . . . . check_alert 2 | . . . . . . . . . . . . . 2 . . . . . . . . . . . . . . . . . . . . . Manual 1 | . . . . . . . . . . . . . . . . . . . . . . . . . . . . . . . . . 1 . Relay Couplers Released 19 | . . . . . . . 8 . . . . . . 4 . . . . . . . . . 5 . . . . . . 2 . . . Machine Destruction 16 | . . . . . . . 8 . . . . . . 4 . . . . . . . . . 2 . . . . . . 2 . . . Programmers 3 | . . . . . . . . . . . . . . . . . . . . . . . . 3 . . . . . . . . . . Fabnet Peak Effective % . | . . . . . . . . . . . . . . . . . . . . . . . . . . . . . . . . . . . Robots Rewired 28 | . . . . . . . . . . . 23 . . . . . . . 3 . . . . . . 2 . . . . . . . . Allies Hacked . | . . . . . . . . . . . . . . . . . . . . . . . . . . . . . . . . . . . Hacks Repelled . | . . . . . . . . . . . . . . . . . . . . . . . . . . . . . . . . . . . Allies | -11 -10 -10 -9 -9 -8 -7 -7 -6 -6 -6 -6 -6 -6 -6 -5 -5 -5 -5 -5 -5 -4 -4 -4 -4 -4 -4 -4 -3 -3 -3 -2 -1 -1 -1 -------- Run | Yrd Mat Min Mat Min Mat Fac Gar Fac Was Fac Ext Cet Arc Hub Fac Was Fac Upp Upp Zhi Pro Fac Was Fac Upp Upp War Pro Res Tes Res Acc Com Ac0 Total Allies 67 | . . . . 4 . . . . . 3 27 5 . . . 1 2 . 3 . . . 20 . . 2 . . . . . . . . Largest Group 23 | . . . . 3 3 . . . . 3 23 23 20 16 . 1 2 . 3 3 2 . 20 19 . 2 2 . . . . . . . Highest-Rated Group 1180 | . . . . 40 40 . . . . 87 841 1180 1022 770 . 31 98 . 87 87 58 . 828 803 . 78 78 . . . . . . . Highest-Rated Ally 159 | . . . . 31 16 . . . . 29 159 159 159 96 . 31 49 . 29 29 29 . 50 50 . 48 48 . . . . . . . Initial Warlord ECA Mod 40 | . . . . . . . . 3 3 3 3 3 3 3 2 2 2 2 2 2 1 1 1 1 1 1 1 . . . . . . . Total Orders 19 | . . . . . . . . . . . . . . . . . 2 . . 2 . . . . . . 1 . 2 . 12 . . . STAY 3 | . . . . . . . . . . . . . . . . . . . . 1 . . . . . . 1 . . . 1 . . . FOLLOW 1 | . . . . . . . . . . . . . . . . . . . . 1 . . . . . . . . . . . . . . EXPLORE 14 | . . . . . . . . . . . . . . . . . 2 . . . . . . . . . . . 1 . 11 . . . RETURN 1 | . . . . . . . . . . . . . . . . . . . . . . . . . . . . . 1 . . . . . Ally Attacks 585 | . . . . . 17 . . . . 15 115 40 29 207 . 25 13 . . . 5 . . 119 . . . . . . . . . . Total Damage 15689 | . . . . . 145 . . . . 226 3190 960 704 5026 . 424 293 . . . 59 . . 4662 . . . . . . . . . . Kills 105 | . . . . . 1 . . . . 1 22 6 2 39 . . 3 . . . 1 . . 30 . . . . . . . . . . Allies Corrupted 8 | . . . . . . . . . . . . . . 6 . . . . . . . . . 2 . . . . . . . . . . Allies Melted 5 | . . . . . . . . . . . . . . 1 . . 1 . . . . . . . . . 1 . . . 1 1 . . Intel | -11 -10 -10 -9 -9 -8 -7 -7 -6 -6 -6 -6 -6 -6 -6 -5 -5 -5 -5 -5 -5 -4 -4 -4 -4 -4 -4 -4 -3 -3 -3 -2 -1 -1 -1 ------- Run | Yrd Mat Min Mat Min Mat Fac Gar Fac Was Fac Ext Cet Arc Hub Fac Was Fac Upp Upp Zhi Pro Fac Was Fac Upp Upp War Pro Res Tes Res Acc Com Ac0 Active Infowar (turns) 39695 | 30 192 1165 1541 787 1009 1352 759 486 89 2015 1620 568 490 530 1035 162 3709 1417 1279 254 1282 1575 584 1554 1231 1249 1094 653 1836 1952 1553 599 3330 714 Optics 20011 | . . . . . . . . . . 1262 1620 568 490 530 1035 162 3709 1417 1279 254 1282 651 . 8 1231 1249 1094 653 1517 . . . . . Sensors 14275 | . . . . . . . . . . . 2 . . . . . 1841 1340 1176 254 1224 1305 584 1256 . . . . 1836 1952 768 596 141 . Terrain 6060 | . . . . . . . . . . . . . . . . . . . . . . . . . . . . . . . 1553 466 3327 714 Seismic 8217 | 30 192 1165 1541 787 1009 1352 759 66 . 373 46 . . 43 854 . . . . . . . . . . . . . . . . . . . Decoding 1 | . . . . . . . . . . . . . . . . . . . . . . . . . . 1 . . . . . . . . Machine Analysis 608 | . . . . . . . . . . . . . . . . . . . . . . . . . . . . 149 459 . . . . . Jamming 15574 | . . . . . . . . 378 89 1999 1294 . . 171 1034 162 1882 914 1238 254 1282 1487 126 1554 1019 689 . . . . . . 2 . ECM 42 | . . . . . . . . 42 . . . . . . . . . . . . . . . . . . . . . . . . . . Robot Analysis Total 9 | . . . 2 . 1 . . . . . . . . . . . . . . 4 . 2 . . . . . . . . . . . . Derelict Logs Recovered 10 | . . 1 . 3 . . . . . . . . . . . . . 1 2 . 1 . . . 1 1 . . . . . . . . Drone Launches 24 | . . . . . . . . . . . . . . . . . 4 . . . . . . . . . . . 1 . 19 . . . Drone Recoveries 8 | . . . . . . . . . . . . . . . . . 2 . . . . . . . . . . . 1 . 5 . . . Exploration | -11 -10 -10 -9 -9 -8 -7 -7 -6 -6 -6 -6 -6 -6 -6 -5 -5 -5 -5 -5 -5 -4 -4 -4 -4 -4 -4 -4 -3 -3 -3 -2 -1 -1 -1 ------------- Run | Yrd Mat Min Mat Min Mat Fac Gar Fac Was Fac Ext Cet Arc Hub Fac Was Fac Upp Upp Zhi Pro Fac Was Fac Upp Upp War Pro Res Tes Res Acc Com Ac0 Turns Passed 42899 | 105 880 1287 1551 787 1748 1391 759 580 296 2017 1620 568 490 530 1035 162 3709 1417 1279 254 1282 1618 584 1554 1231 1249 1094 653 1836 2254 1559 620 4153 747 Spaces Moved 21257 | 55 416 585 758 475 854 732 346 304 153 963 761 177 215 262 510 65 1663 745 648 146 693 741 332 648 673 681 504 319 981 1038 759 345 2349 361 Core 54 | 10 . . . . . . . . . . . . . . . . . . . . . . . . . . . . . . . . . 44 Treads 20965 | 45 416 417 693 475 854 732 346 304 153 963 761 177 215 262 510 65 1663 745 648 146 693 741 332 648 673 681 504 314 981 1038 759 345 2349 317 Legs 5 | . . . . . . . . . . . . . . . . . . . . . . . . . . . . 5 . . . . . . Wheels 233 | . . 168 65 . . . . . . . . . . . . . . . . . . . . . . . . . . . . . . . Hover . | . . . . . . . . . . . . . . . . . . . . . . . . . . . . . . . . . . . Flight . | . . . . . . . . . . . . . . . . . . . . . . . . . . . . . . . . . . . Fastest Speed 50 | 50 160 115 115 160 160 160 160 160 160 156 156 160 160 160 160 160 160 160 160 160 160 152 156 155 155 155 160 156 154 156 143 143 143 50 Average Speed 157 | 140 160 182 156 160 160 160 160 160 160 158 157 160 160 160 160 161 160 160 160 160 160 155 156 156 155 157 162 159 154 158 150 143 150 132 Slowest Speed 260 | 160 160 240 160 160 160 160 160 160 160 235 240 240 160 160 240 240 160 160 240 240 160 160 235 160 155 165 166 260 156 160 236 143 260 155 Overloaded Moves . | . . . . . . . . . . . . . . . . . . . . . . . . . . . . . . . . . . . Propulsion Burnouts . | . . . . . . . . . . . . . . . . . . . . . . . . . . . . . . . . . . . Robots Hopped 2 | . . . . . 2 . . . . . . . . . . . . . . . . . . . . . . . . . . . . . Potential Cave-ins 12 | . . . . . . . . . . . . . . . . . 3 . . . . . . . . . . . . . . 4 3 2 Cave-ins Triggered 1 | . . . . . . . . . . . . . . . . . 1 . . . . . . . . . . . . . . . . . Teleports 1 | . . . . . . . . . . . . . . . . . . . . . . . . . . . . . . . . . 1 . Exploration Rate (%) 61 | 4 59 85 76 98 88 31 49 11 100 36 89 74 82 60 20 75 49 86 83 61 81 28 97 23 91 81 73 61 34 93 49 16 87 39 Regions Visited 34 Branch Regions 17 Pre-discovered Areas 11 | . . 1 . 3 . . . . . . . . . . . . . 1 1 3 . . . . 1 . 1 . . . . . . . Known Exits Taken 18 | . . . 1 . . 1 . . . 1 . . . 1 . . 1 1 1 1 1 . . 1 1 1 1 1 1 1 1 1 . . Unknown Exits Taken 9 | 1 1 1 . 1 1 . . . . . 1 1 1 . . . . . . . . . . . . . . . . . . . 1 . Scrap Searched 24 | . . 1 . 3 . . . . . . . . . . . . . 5 2 . 4 . . . 4 1 . 4 . . . . . . Spaces Dug 305 | . . . 1 . 20 4 10 . 2 8 9 . . 27 6 . 37 4 6 . . 21 . 7 5 . . . 16 21 2 18 22 59 Terrain Destroyed 2886 | . . . 29 . 89 36 43 9 80 140 36 4 2 36 65 162 121 40 24 . 104 112 . 166 48 44 72 32 54 89 68 19 199 963 Melee 6 | . . . 1 . 2 3 . . . . . . . . . . . . . . . . . . . . . . . . . . . . Projectile 853 | . . . . . 3 1 1 9 5 59 21 4 2 22 27 . 74 14 24 . 5 79 . 103 48 44 12 32 38 74 33 19 61 39 AOE 2027 | . . . 28 . 84 32 42 . 75 81 15 . . 14 38 162 47 26 . . 99 33 . 63 . . 60 . 16 15 35 . 138 924 Terrain Rammed . | . . . . . . . . . . . . . . . . . . . . . . . . . . . . . . . . . . . Walls Destroyed . | . . . . . . . . . . . . . . . . . . . . . . . . . . . . . . . . . . . Machines Disabled . | . . . . . . . . . . . . . . . . . . . . . . . . . . . . . . . . . . . Actions | -11 -10 -10 -9 -9 -8 -7 -7 -6 -6 -6 -6 -6 -6 -6 -5 -5 -5 -5 -5 -5 -4 -4 -4 -4 -4 -4 -4 -3 -3 -3 -2 -1 -1 -1 --------- Run | Yrd Mat Min Mat Min Mat Fac Gar Fac Was Fac Ext Cet Arc Hub Fac Was Fac Upp Upp Zhi Pro Fac Was Fac Upp Upp War Pro Res Tes Res Acc Com Ac0 Total 28107 | 70 528 748 988 492 1056 895 448 363 181 1255 1084 436 333 316 642 93 2512 931 838 167 827 1072 395 1016 779 804 692 402 1218 1486 1058 468 2948 566 Wait 3318 | 2 43 117 83 9 51 93 14 25 . 112 82 197 79 12 42 3 611 141 135 . 86 194 27 235 49 52 67 32 73 193 151 22 234 52 Move 21222 | 54 415 584 757 474 849 732 345 304 152 962 760 176 214 261 510 64 1661 744 647 145 692 741 331 647 672 680 503 318 980 1037 758 344 2348 361 Hop 2 | . . . . . 2 . . . . . . . . . . . . . . . . . . . . . . . . . . . . . Pick Up 285 | 2 9 3 16 2 11 9 6 2 . 24 7 9 3 2 9 1 27 1 . 3 1 8 2 9 4 2 13 6 13 24 11 4 40 2 Fast Attach 322 | 7 1 2 14 . 3 2 4 5 3 11 9 13 3 1 10 2 26 7 . 8 4 10 12 9 3 7 12 5 37 40 20 3 26 3 Attach 153 | . . 1 1 . 5 2 . 3 . 9 4 1 3 2 8 1 16 1 . 1 1 5 2 8 3 9 13 8 6 2 3 4 14 17 Detach 62 | . 1 . 3 . 1 . . 2 3 1 2 6 . 2 1 . 5 . . . . 1 1 1 . . 11 4 5 2 2 3 4 1 Swap 313 | . 3 3 17 . 26 17 10 2 2 16 11 6 4 5 7 2 18 10 14 . 11 17 3 19 6 3 3 2 5 31 13 8 19 . Drop 491 | . 4 1 31 2 20 12 12 5 8 24 17 16 4 3 12 3 35 7 . 10 5 15 13 11 4 8 7 . 45 56 31 5 64 1 Fire 1709 | 5 52 36 65 5 86 24 54 15 13 96 48 12 7 28 42 17 111 20 23 . 27 81 . 75 38 32 54 27 51 99 63 75 199 129 Melee 27 | . . . 1 . 2 3 3 . . . . . 16 . 1 . 1 . . . . . . . . . . . . . . . . . Ram 1 | . . 1 . . . . . . . . . . . . . . . . . . . . . . . . . . . . . . . . Kick . | . . . . . . . . . . . . . . . . . . . . . . . . . . . . . . . . . . . Crush 8 | . . . . . . 1 . . . . . . . . . . . . . . . . . 2 . . . . 3 2 . . . . Escape Stasis 1 | . . . . . . . . . . . . . . . . . 1 . . . . . . . . . . . . . . . . . Rewire 178 | . . . . . . . . . . . 144 . . . . . . . 19 . . . 4 . . 10 1 . . . . . . . Trap 1 | . . . . . . . . . . . . . . . . . . . . . . . . . . 1 . . . . . . . . Miscellaneous 14 | . . . . . . . . . . . . . . . . . . . . . . . . . . . 8 . . . 6 . . . Route ------- -11/Scrapyard -10/Materials (discovered 3 exits: *Mat x2 / [*Min]) -10/Mines (discovered 2 exits: *Mat x2) -9/Materials (discovered 3 exits: *Mat / *Min x2) -9/Mines (discovered 4 exits: *Mat x2 / [*Exi] / [*Zio]) -8/Materials (discovered 2 exits: *Fac x2) -7/Factory (discovered 5 exits: *Fac / [*Sto x2] / [*Low] / Gar) -7/Garrison -6/Factory -6/Waste -6/Factory (discovered 5 exits: *Fac / *Low x2 / *Ext x2) -6/Extension (discovered 2 exits: *Fac / *Cet) -6/Cetus (discovered 2 exits: *Fac / [*Arc]) -6/Archives (discovered 3 exits: *Fac / *Hub x2) -6/Hub_04(d) (discovered 4 exits: *Fac x4) -5/Factory (discovered 2 exits: *Fac x2) -5/Waste -5/Factory (discovered 4 exits: *Fac x2 / *Upp x2) -5/Upper Caves -5/Upper Caves (discovered 2 exits: *Fac / *Zhi) -5/Zhirov -4/Proximity Caves -4/Factory (discovered 4 exits: Res / *Upp x2 / Arm) -4/Waste -4/Factory (discovered 4 exits: *Res / *Upp x2 / Arm) -4/Upper Caves -4/Upper Caves (discovered 2 exits: *Res / *War) -4/Warlord -3/Proximity Caves -3/Research (discovered 3 exits: Res / *Tes x2) -3/Testing -2/Research -1/Access -1/Command (discovered 3 exits: [*Sur x2] / [*Ac0]) -1/Access_0 History --------- Turn | Location | Event 13 | -11/Scrapyard | Discovered new exit (range 15) 106 | -11/Scrapyard | Entered Materials 319 | -10/Materials | Build established: Mutant 525 | -10/Materials | Discovered new exit (range 10) 757 | -10/Materials | Discovered new exit (range 4) 816 | -10/Materials | Discovered new exit (range 6) 986 | -10/Materials | Entered Mines 1068 | -10/Mines | Assembled infested the area 1312 | -10/Mines | Core integrity fell below 50% 1432 | -10/Mines | Lost 3 parts (2n1w) 2099 | -10/Mines | Discovered new exit (range 6) 2186 | -10/Mines | Discovered new exit (range 11) 2273 | -10/Mines | Entered Materials 2273 | -9/Materials | Evolved 2 slots: Utility x1, Weapon x1 2572 | -9/Materials | Build established: Scavenger-Gunner 2578 | -9/Materials | Identified exit to Mines 3563 | -9/Materials | Central database locked down 3661 | -9/Materials | Discovered new exit (range 15) 3824 | -9/Materials | Entered Mines 3827 | -9/Mines | Received a Mining Laser from a helpful Derelict 3835 | -9/Mines | Met a Derelict bent on vengeance 3863 | -9/Mines | Found a hidden stash of uninstalled traps 3957 | -9/Mines | Discovered new exit (range 7) 4028 | -9/Mines | Learned location of Zion (-7) 4039 | -9/Mines | Build established: Gunner 4045 | -9/Mines | Deemed a non-threat by the Exiles lab entrance 4045 | -9/Mines | Discovered new exit (range 5) 4128 | -9/Mines | A weapon hastily lodged in a ceiling crevice suddenly fell to the ground 4268 | -9/Mines | Assisted by bots powering up and referring to "LRC-V3" 4388 | -9/Mines | Received a Rocket Launcher from a helpful Derelict 4560 | -9/Mines | Discovered new exit (range 9) 4561 | -9/Mines | A Derelict revealed a hidden shortcut to a safe place 4611 | -9/Mines | Entered Materials 4611 | -8/Materials | Accompanied by 3 allies 4611 | -8/Materials | Evolved 2 slots: Propulsion x1, Utility x1 4903 | -8/Materials | Build established: Scavenger-Tank 5152 | -8/Materials | Lost 3 allies 5186 | -8/Materials | Garrison activated, responded to threat 5465 | -8/Materials | Discovered new exit (range 16) 5516 | -8/Materials | Central database locked down 5587 | -8/Materials | Destroyed 11 combat bots 5714 | -8/Materials | Build established: Gunner 5970 | -8/Materials | Discovered new exit (range 16) 6211 | -8/Materials | First assault squad dispatched 6359 | -8/Materials | Entered Factory 6359 | -7/Factory | Evolved 2 slots: Power x1, Utility x1 6383 | -7/Factory | Build established: Scavenger-Gunner 6460 | -7/Factory | Discovered new exit (range 5) 6639 | -7/Factory | Discovered new exit (range 5) 6791 | -7/Factory | Discovered new exit (range 16) 7197 | -7/Factory | Discovered new exit (range 15) 7466 | -7/Factory | Destroyed 7 combat bots 7728 | -7/Factory | Garrison activated, responded to threat 7750 | -7/Factory | Identified exit to Garrison 7750 | -7/Factory | Entered Garrison 7959 | -7/Garrison | Assembled breached garrison interior 7967 | -7/Garrison | Garrison Relay disabled 8108 | -7/Garrison | Destroyed 12 combat bots 8144 | -7/Garrison | Discovered new exit (range 8) 8337 | -7/Garrison | Destroyed 29 combat bots 8375 | -7/Garrison | Garrison Relay disabled 8509 | -7/Garrison | Entered Factory 8509 | -6/Factory | Evolved 2 slots: Propulsion x1, Utility x1 8576 | -6/Factory | Garrison activated, responded to threat 8611 | -6/Factory | Spotted B-75 Beast 9089 | -6/Factory | Sucked down chute 9089 | -6/Factory | Entered Waste 9104 | -6/Waste | EMP discharged 9121 | -6/Waste | Spotted C-40 Crusher 9123 | -6/Waste | Spotted C-40 Crusher 9133 | -6/Waste | Destroyed C-40 Crusher 9133 | -6/Waste | Spotted C-40 Crusher 9139 | -6/Waste | Spotted C-40 Crusher 9143 | -6/Waste | Destroyed C-40 Crusher 9144 | -6/Waste | Spotted C-40 Crusher 9146 | -6/Waste | Destroyed C-40 Crusher 9146 | -6/Waste | Destroyed C-40 Crusher 9148 | -6/Waste | Spotted C-40 Crusher 9156 | -6/Waste | Destroyed C-40 Crusher 9156 | -6/Waste | Destroyed C-40 Crusher 9179 | -6/Waste | Found Damper Plating 9204 | -6/Waste | EMP discharged 9304 | -6/Waste | EMP discharged 9317 | -6/Waste | Discovered new exit (range 15) 9385 | -6/Waste | Entered Factory 9479 | -6/Factory | Build established: Scavenger-Tank 9796 | -6/Factory | Identified exit to Lower Caves 9796 | -6/Factory | Identified exit to Extension 9851 | -6/Factory | Build established: Tank 10166 | -6/Factory | Spotted B-75 Beast 10255 | -6/Factory | Destroyed B-75 Beast 10296 | -6/Factory | Destroyed 11 combat bots 10305 | -6/Factory | Lost 6 parts (1p3n2u) 10350 | -6/Factory | Discovered new exit (range 17) 10435 | -6/Factory | First assault squad dispatched 10505 | -6/Factory | Build established: Scavenger-Tank 11402 | -6/Factory | Entered Extension 11450 | -6/Extension | Rescued a captive Derelict 11722 | -6/Extension | Rescued A7 11836 | -6/Extension | Rescued a captive Derelict 11856 | -6/Extension | Rescued a captive Derelict 11924 | -6/Extension | Build established: Commander-Tank 12294 | -6/Extension | Spotted B-75 Beast 12314 | -6/Extension | Spotted B-75 Beast 12322 | -6/Extension | Destroyed B-75 Beast 12343 | -6/Extension | Allies destroyed B-75 Beast 12363 | -6/Extension | Lost 3 allies 12443 | -6/Extension | Energy Cycler disabled 12443 | -6/Extension | Rescued a captive Derelict 12444 | -6/Extension | Rescued a captive Derelict 12457 | -6/Extension | Rescued a captive Derelict 12935 | -6/Extension | Discovered new exit (range 10) 12936 | -6/Extension | Discovered new exit (range 6) 12947 | -6/Extension | Disrupted transfer network 12978 | -6/Extension | Destroyed 9 combat bots 13022 | -6/Extension | Entered Cetus 13022 | -6/Cetus | Accompanied by 23 allies (A7) 13027 | -6/Cetus | Acquired a Cetus Manufacturing Module code from A7 13042 | -6/Cetus | Spotted Cetus Guard 13042 | -6/Cetus | Spotted Cetus Guard 13042 | -6/Cetus | Spotted Cetus Guard 13042 | -6/Cetus | Spotted Cetus Guard 13054 | -6/Cetus | Destroyed Cetus Guard 13059 | -6/Cetus | Allies destroyed Cetus Guard 13061 | -6/Cetus | Allies destroyed Cetus Guard 13064 | -6/Cetus | Destroyed Cetus Guard 13087 | -6/Cetus | Lost 5 allies 13182 | -6/Cetus | Started Cetus Manufacturing Module 13194 | -6/Cetus | Escorted A7 to Cetus Mainframe 13207 | -6/Cetus | Manufactured an Enhanced Grunt 13232 | -6/Cetus | Manufactured an Enhanced Grunt 13257 | -6/Cetus | Manufactured an Enhanced Grunt 13282 | -6/Cetus | Manufactured an Enhanced Grunt 13307 | -6/Cetus | Manufactured an Enhanced Grunt 13315 | -6/Cetus | Discovered new exit (range 22) 13378 | -6/Cetus | Spotted Cetus Guard 13378 | -6/Cetus | Spotted Cetus Guard 13379 | -6/Cetus | Spotted Cetus Guard 13385 | -6/Cetus | Spotted Cetus Guard 13386 | -6/Cetus | Allies destroyed Cetus Guard 13387 | -6/Cetus | Discovered new exit (range 21) 13391 | -6/Cetus | Allies destroyed Cetus Guard 13396 | -6/Cetus | Destroyed Cetus Guard 13402 | -6/Cetus | Destroyed Cetus Guard 13425 | -6/Cetus | Lost 3 allies 13427 | -6/Cetus | Met Revision 17 13465 | -6/Cetus | Found Prototype Device 13465 | -6/Cetus | Identified Exp. Thermal Shield 13590 | -6/Cetus | Entered Archives 13590 | -6/Archives | Accompanied by 20 allies (A7) 13595 | -6/Archives | Received a hacking code to weaken MAIN.C 13638 | -6/Archives | Discovered new exit (range 22) 13666 | -6/Archives | Lost 3 allies 13680 | -6/Archives | Discovered new exit (range 22) 13703 | -6/Archives | Discovered new exit (range 20) 13928 | -6/Archives | Build established: Commander-Mutant 14080 | -6/Archives | Entered Hub_04(d) 14080 | -6/Hub_04(d) | Accompanied by 16 allies 14096 | -6/Hub_04(d) | Identified exit to Factory 14321 | -6/Hub_04(d) | Build established: Commander-Tank 14487 | -6/Hub_04(d) | Lost 9 allies 14519 | -6/Hub_04(d) | Network Hub disabled 14538 | -6/Hub_04(d) | Spotted Lightning 14539 | -6/Hub_04(d) | Network Hub disabled 14541 | -6/Hub_04(d) | Core integrity fell below 50% 14549 | -6/Hub_04(d) | Spotted Lightning 14586 | -6/Hub_04(d) | Spotted Lightning 14588 | -6/Hub_04(d) | Network Hub disabled 14599 | -6/Hub_04(d) | Lost 4 allies 14609 | -6/Hub_04(d) | System corruption reached 10% 14610 | -6/Hub_04(d) | Entered Factory 14610 | -5/Factory | Evolved 2 slots: Utility x2 14720 | -5/Factory | Discovered new exit (range 22) 14747 | -5/Factory | Build established: Scavenger-Tank 14809 | -5/Factory | Identified exit to Factory 15028 | -5/Factory | Discovered exit to Factory (range 8) 15490 | -5/Factory | Destroyed 8 combat bots 15510 | -5/Factory | First assault squad dispatched 15645 | -5/Factory | Sucked down chute 15645 | -5/Factory | Entered Waste 15646 | -5/Waste | Met a frightened Derelict 15660 | -5/Waste | EMP discharged 15666 | -5/Waste | Spotted C-40 Crusher 15677 | -5/Waste | Destroyed C-40 Crusher 15683 | -5/Waste | Spotted C-40 Crusher 15691 | -5/Waste | Spotted C-40 Crusher 15697 | -5/Waste | Destroyed C-40 Crusher 15697 | -5/Waste | Spotted C-40 Crusher 15701 | -5/Waste | Spotted C-40 Crusher 15702 | -5/Waste | Destroyed C-40 Crusher 15718 | -5/Waste | Destroyed C-40 Crusher 15718 | -5/Waste | Destroyed C-40 Crusher 15718 | -5/Waste | Spotted C-40 Crusher 15727 | -5/Waste | Destroyed C-40 Crusher 15760 | -5/Waste | EMP discharged 15760 | -5/Waste | System corruption reached 10% 15768 | -5/Waste | Discovered new exit (range 21) 15807 | -5/Waste | Entered Factory 15807 | -5/Factory | Accompanied by 1 ally 15989 | -5/Factory | Discovered new exit (range 21) 16385 | -5/Factory | Discovered exit to Factory (range 17) 16472 | -5/Factory | Found Prototype Launcher 16472 | -5/Factory | Identified Scatter Rocket Array 16993 | -5/Factory | Repaired Imp. Heavy Siege Treads 17298 | -5/Factory | Repaired Broken Centrium Heavy Treads? 17423 | -5/Factory | Identified exit to Upper Caves 17455 | -5/Factory | Spotted B-75 Beast 17674 | -5/Factory | Lost 5 parts (1p3u1w) 17675 | -5/Factory | Destroyed 13 combat bots 17789 | -5/Factory | Crushed by falling debris 17970 | -5/Factory | Fabricated Hardcell Cannon (x2) 18316 | -5/Factory | Discovered exit to Factory (range 4) 18446 | -5/Factory | Repaired Centrium Heavy Treads 19240 | -5/Factory | Fabricated Enh. Coil Gun (x1) 19512 | -5/Factory | Build established: Hacker-Tank 19516 | -5/Factory | Entered Upper Caves 19522 | -5/Upper Caves | Met a Warlord Commander 19523 | -5/Upper Caves | Learned location of Warlord (-4) 19524 | -5/Upper Caves | Warlord Commander delivered Encrypted Comm Array 19688 | -5/Upper Caves | Attracted the attention of an 0b10 checkpoint 19821 | -5/Upper Caves | Build established: Scavenger-Tank 20071 | -5/Upper Caves | Learned location of 2 exits from Factory 20140 | -5/Upper Caves | Learned Armory stockpile data 20140 | -5/Upper Caves | Learned location of 1 exit from Proximity Caves 20728 | -5/Upper Caves | Discovered new exit (range 13) 20930 | -5/Upper Caves | Identified exit to Upper Caves 20933 | -5/Upper Caves | Entered another Upper Caves area 21024 | -5/Upper Caves | Attracted the attention of an 0b10 checkpoint 21067 | -5/Upper Caves | Discovered exit to Factory (range 5) 21183 | -5/Upper Caves | Encountered a Warlord checkpoint 21906 | -5/Upper Caves | Discovered new exit (range 15) 21937 | -5/Upper Caves | Identified exit to Zhirov 22101 | -5/Upper Caves | Attacked by a delusional Derelict stockpiling Unaware 22212 | -5/Upper Caves | Entered Zhirov 22212 | -5/Zhirov | Accompanied by 3 allies 22212 | -5/Zhirov | Discovered new exit (range 3) 22214 | -5/Zhirov | Identified exit to Proximity Caves 22243 | -5/Zhirov | Met Zhirov 22273 | -5/Zhirov | Learned location of Quarantine (-2) 22273 | -5/Zhirov | Learned location of Testing (-3) 22273 | -5/Zhirov | Learned location of Command (-1) 22288 | -5/Zhirov | Zhirov requested help retrieving the SGEMP Prototype 22320 | -5/Zhirov | Found Alien Artifact 22320 | -5/Zhirov | Identified Integrated Dissipator 22320 | -5/Zhirov | Installed Integrated Dissipator, increased core heat dissipation (+20) 22397 | -5/Zhirov | Found Alien Artifact 22466 | -5/Zhirov | Entered Proximity Caves 22466 | -4/Proximity Caves | Accompanied by 3 allies 22776 | -4/Proximity Caves | Build established: Tank 23516 | -4/Proximity Caves | Learned location of 1 exit from Research 23748 | -4/Proximity Caves | Entered Factory 23748 | -4/Factory | Evolved 2 slots: Propulsion x2 23749 | -4/Factory | Identified exit to Research 23749 | -4/Factory | Identified exit to Upper Caves 24104 | -4/Factory | Fabricated Enh. Coil Gun (x1) 24369 | -4/Factory | Found Prototype Device 24369 | -4/Factory | Identified Adv. EM Shield 24696 | -4/Factory | Build established: Hacker-Tank 24888 | -4/Factory | Identified exit to Armory 25248 | -4/Factory | First assault squad dispatched 25366 | -4/Factory | Sucked down chute 25366 | -4/Factory | Entered Waste 25367 | -4/Waste | Joined by Warlord forces that had cleared the area 25386 | -4/Waste | Found Unknown Device 25386 | -4/Waste | Identified Adv. Force Booster 25766 | -4/Waste | Discovered new exit (range 12) 25922 | -4/Waste | Identified exit to Factory 25950 | -4/Waste | Entered Factory 25950 | -4/Factory | Accompanied by 19 allies 26336 | -4/Factory | Lost 3 allies 26388 | -4/Factory | Repaired Broken Biometal Heavy Treads 26434 | -4/Factory | Repaired Broken Centrium Heavy Treads 26461 | -4/Factory | Repaired F-cell Engine 26499 | -4/Factory | Discovered exit to Research (range 10) 26550 | -4/Factory | Lost 3 allies 26963 | -4/Factory | Lost 6 allies 27031 | -4/Factory | Lost 4 allies 27200 | -4/Factory | First assault squad dispatched 27316 | -4/Factory | High security lockdown imminent 27330 | -4/Factory | System corruption reached 10% 27396 | -4/Factory | High security lockdown engaged 27504 | -4/Factory | Entered Upper Caves 27781 | -4/Upper Caves | Attracted the attention of an 0b10 checkpoint 27852 | -4/Upper Caves | Encountered a Warlord checkpoint 28448 | -4/Upper Caves | Spotted B-86 Titan 28484 | -4/Upper Caves | Destroyed B-86 Titan 28524 | -4/Upper Caves | Discovered new exit (range 10) 28549 | -4/Upper Caves | Identified exit to Upper Caves 28735 | -4/Upper Caves | Entered another Upper Caves area 28821 | -4/Upper Caves | Discovered exit to Research (range 17) 28838 | -4/Upper Caves | Identified exit to Warlord 29180 | -4/Upper Caves | Attracted the attention of an 0b10 checkpoint 29646 | -4/Upper Caves | Attracted the attention of an 0b10 outpost 29714 | -4/Upper Caves | Destroyed 8 combat bots 29721 | -4/Upper Caves | Lost 3 parts (2n1w) 29870 | -4/Upper Caves | Encountered a Warlord checkpoint 29871 | -4/Upper Caves | Spotted B-86 Titan 29984 | -4/Upper Caves | Entered Warlord 29984 | -4/Warlord | Accompanied by 2 allies 29985 | -4/Warlord | Identified exit to Proximity Caves 30039 | -4/Warlord | System corruption cleaned by Quarantine Array 30065 | -4/Warlord | Build established: Tank 30184 | -4/Warlord | Learned Factory repair station intel 30184 | -4/Warlord | Learned Factory garrison access intel 30186 | -4/Warlord | Learned 4 Command zone layouts 30188 | -4/Warlord | Learned location of Armory (-4) 30188 | -4/Warlord | Learned Armory stockpile data 30226 | -4/Warlord | Found Prototype Reactor 30230 | -4/Warlord | Found Prototype Processor 30230 | -4/Warlord | Identified Exp. Targeting Computer 30238 | -4/Warlord | Found Prototype Hackware 30238 | -4/Warlord | Identified System Mapper 30246 | -4/Warlord | Found Prototype Processor 30246 | -4/Warlord | Identified Exp. Armor Integrity Analyzer 30249 | -4/Warlord | Found Prototype Device 30249 | -4/Warlord | Identified Exp. Focal Shield 30420 | -4/Warlord | Met Warlord 30431 | -4/Warlord | Warlord's base attacked by MAIN.C 30500 | -4/Warlord | Build established: Hacker-Gunner 30542 | -4/Warlord | Found Prototype Energy Gun 30542 | -4/Warlord | Identified Vortex Rail 30545 | -4/Warlord | Found Vortex Rail 30713 | -4/Warlord | Destroyed 7 combat bots 30717 | -4/Warlord | Lost 3 allies 30777 | -4/Warlord | Destroyed 7 combat bots 30781 | -4/Warlord | Warlord forces counterattacked 30841 | -4/Warlord | Destroyed 11 combat bots 30859 | -4/Warlord | Spotted B-90 Cyclops 30859 | -4/Warlord | Spotted B-90 Cyclops 30864 | -4/Warlord | Spotted B-86 Titan 30866 | -4/Warlord | Spotted Executioner 30888 | -4/Warlord | Destroyed B-86 Titan 30917 | -4/Warlord | Lost 8 allies 31018 | -4/Warlord | Lost 4 allies 31031 | -4/Warlord | Spotted Executioner 31031 | -4/Warlord | Spotted Striker 31031 | -4/Warlord | Spotted Executioner 31039 | -4/Warlord | Destroyed Executioner 31041 | -4/Warlord | Destroyed Executioner 31045 | -4/Warlord | Destroyed Striker 31066 | -4/Warlord | Destroyed 13 combat bots 31071 | -4/Warlord | Lost 3 allies 31078 | -4/Warlord | Entered Proximity Caves 31319 | -3/Proximity Caves | Spotted B-86 Titan 31350 | -3/Proximity Caves | Destroyed B-86 Titan 31377 | -3/Proximity Caves | Lost 4 parts (2p2n) 31383 | -3/Proximity Caves | Attracted the attention of an 0b10 checkpoint 31731 | -3/Proximity Caves | Entered Research 31731 | -3/Research | Evolved 2 slots: Utility x2 31732 | -3/Research | Identified exit to Research 31931 | -3/Research | Revision forces began assault on 0b10 31951 | -3/Research | Met up with Revision 17++ 32024 | -3/Research | Build established: Derelict-Gunner 32286 | -3/Research | Identified exit to Testing 32431 | -3/Research | Research terminal network offline 32500 | -3/Research | Build established: Scavenger-Gunner 32665 | -3/Research | Spotted Striker 32714 | -3/Research | Lost 4 allies 32730 | -3/Research | Destroyed 8 combat bots 33259 | -3/Research | Found Fusion Bomb Launcher 33567 | -3/Research | Entered Testing 33586 | -3/Testing | Found Prototype Energy Gun 33586 | -3/Testing | Identified Hyp. EM Gauss Rifle 33806 | -3/Testing | Discovered exit to Research (range 8) 33838 | -3/Testing | Found Prototype Hackware 33838 | -3/Testing | Identified Ghost Barrier 33868 | -3/Testing | Found Fusion Bomb Launcher 33893 | -3/Testing | Identified Vortex Chain Reactor 34225 | -3/Testing | Build established: Hacker-Gunner 34355 | -3/Testing | Found Prototype Energy Cannon 34355 | -3/Testing | Identified Cld. Nova Cannon 34686 | -3/Testing | Found Prototype Energy Gun 34686 | -3/Testing | Identified Tachyon Dispersion Ray 34740 | -3/Testing | Found Prototype Launcher 34746 | -3/Testing | Identified Tactical Quantum Warhead 35139 | -3/Testing | Found Prototype Energy Gun 35139 | -3/Testing | Identified Warp Gun 35361 | -3/Testing | Found Prototype Protection 35361 | -3/Testing | Identified Centrium Heavy Armor Plating 35389 | -3/Testing | Found Prototype Device 35436 | -3/Testing | Identified Exp. Terrain Scanner 35463 | -3/Testing | Found Prototype Device 35469 | -3/Testing | Identified Exp. EM Disruption Field 35531 | -3/Testing | Found Prototype Energy Cannon 35531 | -3/Testing | Identified Potential Cannon 35649 | -3/Testing | Found Prototype Device 35649 | -3/Testing | Identified Exp. Thermal Defense Suite 35757 | -3/Testing | Build established: Scavenger-Gunner 35821 | -3/Testing | Entered Research 35821 | -2/Research | Warlord forces began assault on 0b10 35821 | -2/Research | Evolved 2 slots: Utility x2 35931 | -2/Research | Research machine network offline 36074 | -2/Research | Borebot progress halted 36106 | -2/Research | Spotted Striker 36107 | -2/Research | Spotted Striker 36120 | -2/Research | Destroyed Striker 36125 | -2/Research | Found Prototype Processor 36125 | -2/Research | Identified Exp. Melee Analysis Suite 36174 | -2/Research | Spotted Striker 36218 | -2/Research | Lost 3 allies 36301 | -2/Research | Discovered new exit (range 36) 36355 | -2/Research | Borebot progress halted 36408 | -2/Research | Spotted Striker 36456 | -2/Research | Borebot progress halted 36520 | -2/Research | Met up with Warlord 36528 | -2/Research | Found Prototype Hackware 36528 | -2/Research | Identified Exp. System Shield 36544 | -2/Research | Identified exit to Access 36582 | -2/Research | Spotted B-90 Cyclops 36657 | -2/Research | Build established: Tank 36667 | -2/Research | Lost 7 allies 36670 | -2/Research | Found Quantum Capacitor 36736 | -2/Research | Spotted Executioner 36737 | -2/Research | Spotted Executioner 36741 | -2/Research | Destroyed Executioner 36741 | -2/Research | Destroyed Executioner 36917 | -2/Research | Warlord invited to help at Command 36917 | -2/Research | Given Cave Seal Controls access code 37112 | -2/Research | Found Prototype Processor 37112 | -2/Research | Identified Exp. Core Analyzer 37184 | -2/Research | Spotted Executioner 37190 | -2/Research | Destroyed Executioner 37205 | -2/Research | Spotted Striker 37206 | -2/Research | Spotted Striker 37208 | -2/Research | Spotted Striker 37213 | -2/Research | Destroyed Striker 37219 | -2/Research | Destroyed Striker 37222 | -2/Research | Destroyed Striker 37229 | -2/Research | Spotted Striker 37230 | -2/Research | Destroyed Striker 37269 | -2/Research | Found Prototype Device 37269 | -2/Research | Identified Adv. Kinecellerator 37280 | -2/Research | Destroyed 11 combat bots 37380 | -2/Research | Entered Access 37380 | -1/Access | Evolved 2 slots: Power x1, Utility x1 37679 | -1/Access | Build established: Gunner 37687 | -1/Access | Garrison activated, responded to threat 37714 | -1/Access | Lost 4 allies 37731 | -1/Access | Destroyed 12 combat bots 37899 | -1/Access | Discovered new exit (range 29) 37998 | -1/Access | Identified exit to Command 38000 | -1/Access | Entered Command 38004 | -1/Command | Phase Generator disabled 38317 | -1/Command | Found Prototype Launcher 38317 | -1/Command | Identified Enh. Gamma Bomb Array 38500 | -1/Command | First assault squad dispatched 38623 | -1/Command | Destroyed 13 combat bots 38667 | -1/Command | Disengaged cave seal 38667 | -1/Command | Derelicts emerged from the dark tunnel 38667 | -1/Command | Welcomed Warlord to Command 38711 | -1/Command | Warlord commented on Warlord statues 38721 | -1/Command | Spotted Combat Programmer 38727 | -1/Command | Spotted Combat Programmer 38728 | -1/Command | Destroyed Combat Programmer 38734 | -1/Command | Destroyed Combat Programmer 38740 | -1/Command | Warlord destroyed during the assault 38745 | -1/Command | Spotted M Guard 38767 | -1/Command | Destroyed M Guard 38767 | -1/Command | All MAIN.C guards destroyed 38776 | -1/Command | Lost 3 allies 38851 | -1/Command | Build established: Tank 39025 | -1/Command | Met MAIN.C 39025 | -1/Command | Hacked MAIN.C using A7's code 39031 | -1/Command | 0b10 Conduit disabled 39043 | -1/Command | MAIN.C activated Command garrisons 39083 | -1/Command | Destroyed MAIN.C 39109 | -1/Command | Lost 3 parts (1p1n1u) 39135 | -1/Command | Spotted B-99 Colossus 39230 | -1/Command | Found Prototype Reactor 39233 | -1/Command | Found Vortex Chain Reactor 39238 | -1/Command | Found Prototype Energy Cannon 39238 | -1/Command | Identified Imp. Potential Cannon 39255 | -1/Command | Found Prototype Protection 39255 | -1/Command | Identified Hvy. Regenerative Plating 39259 | -1/Command | Found Prototype Device 39259 | -1/Command | Identified Exp. System Purifier 39281 | -1/Command | Found Exp. Focal Shield 39302 | -1/Command | Identified Zero-point Reactor 39536 | -1/Command | Build established: Gunner 39945 | -1/Command | Discovered new exit (range 9) 40377 | -1/Command | Found Prototype Ballistic Gun 40377 | -1/Command | Identified Multirail 40927 | -1/Command | Found Quantum Capacitor 41214 | -1/Command | Discovered new exit (range 7) 42146 | -1/Command | Identified Transdimensional Reconstructor 42146 | -1/Command | Warped through subspace to slip node 42146 | -1/Command | Discovered new exit (range 5) 42153 | -1/Command | Entered Access_0 42155 | -1/Access_0 | Met Architect 42156 | -1/Access_0 | Destroyed A8 42157 | -1/Access_0 | Architect warped through subspace 42205 | -1/Access_0 | Architect warped through subspace 42243 | -1/Access_0 | Subspace Access Node disabled 42254 | -1/Access_0 | Architect warped through subspace 42291 | -1/Access_0 | Architect warped through subspace 42328 | -1/Access_0 | A6 warped into view 42336 | -1/Access_0 | Destroyed A6 42343 | -1/Access_0 | Architect warped through subspace 42399 | -1/Access_0 | Architect warped through subspace 42414 | -1/Access_0 | Subspace Access Node disabled 42451 | -1/Access_0 | Architect warped through subspace 42490 | -1/Access_0 | Found Alien Artifact 42493 | -1/Access_0 | Architect warped through subspace 42531 | -1/Access_0 | Architect warped through subspace 42579 | -1/Access_0 | Architect warped through subspace 42631 | -1/Access_0 | Architect warped through subspace 42652 | -1/Access_0 | Lost 4 parts (1p1n2u) 42658 | -1/Access_0 | Architect warped through subspace 42676 | -1/Access_0 | A5 warped into view 42680 | -1/Access_0 | Architect warped through subspace 42697 | -1/Access_0 | Core integrity fell below 50% 42704 | -1/Access_0 | Destroyed A5 42735 | -1/Access_0 | Identified Integrated Mediator 42735 | -1/Access_0 | Installed Integrated Mediator, increased core attachment efficiency 42740 | -1/Access_0 | Architect warped through subspace 42760 | -1/Access_0 | Architect warped through subspace 42773 | -1/Access_0 | Lost 10 parts (1p1n6u2w) 42783 | -1/Access_0 | Subspace Access Node disabled 42817 | -1/Access_0 | Architect warped through subspace 42847 | -1/Access_0 | Lost 4 parts (1p1n1u1w) 42858 | -1/Access_0 | Core integrity fell below 20% 42878 | -1/Access_0 | Released all parts (8) 42900 | -1/Access_0 | Destroyed by Enhanced Grunt with Neutron Cannon Last Messages --------------- 42872_ Penetrated by Quantum Shear. 42873_ HV Slug penetrates Wall. 42874_ Hyp. Linear Accelerator severed. 42874_ Penetrated by Quantum Shear. 42874_ Antimatter Reactor destroyed. 42875_ Acquired Hyp. Linear Accelerator. 42876_ Penetrated by Quantum Shear. 42876_ Adv. Coolant Injector destroyed. 42878_ Released Exp. Biometal Medium Treads. 42878_ Released Exp. Energy Well. 42878_ Released Arm. Heavy Treads. 42878_ Released Zero-point Reactor. 42878_ Released Exp. Core Analyzer. 42878_ Released Huge Storage Unit. 42878_ Released Imp. Armor Integrity Analyzer. 42878_ Released Hyp. Linear Accelerator. 42879_ Quantum Shear penetrates Wall. 42879_ Penetrated by Quantum Shear. 42881_ Quantum Shear penetrates Wall. 42897_ System corrupted: Matter fused (-10). Map ----- +----------------------------------------------------+ | ?????????????????????????????????????????????????? | | ?????????????????????????????????????????????????? | | ?????????????????????????????????????????????????? | | ?????????????????????????????????????????????????? | | ?????????????????????????????????????????????????? | | ?????????????????????????????????????????????????? | | ?????????????????????????????????????????????????? | | ?????????????????????????????????????????????????? | | ?????????????????????????????????????????????????? | | ?????????????????????????????????????????????????? | | ?????????????????????????????????????????????????? | | ?????????????????????????????????????????????????? | | ?????????????????????????????????????????????????? | | ?????????????????????????????????????????????????? | | ?????????????????????????????????????????????????? | | ?????????????????????????????????????????????????? | | ?????????????????????????????????????????????????? | | ?????????????????????????????????????????????????? | | ????????????????????????###??????????????????????? | | ???????????????????????? ##?????????????????????? | | ???????????????????###### ??????????????????????? | | ???????????????????# ## ??????????????????????? | | ???????????????????# #??????????????????????? | | ??????????????????## ##?????????????????????? | | ?????????????????## #?????????????????????? | | """"?######??????#g @#??????????????????????? | | "## ##?????#g #??????????????????????? | | ## #?????#g ;##??????????????????????? | | ???????## ##???????????????????????? | | #??????????##; #????????????????????????? | | ##??????????## ##????????????????????????? | | ##????####??# #?????????????????????????? | | ###### #### #?????????????????????????? | | #" #?????????????????????????? | | ?####" #?????????????????????????? | | ????## ########?????????????????????????? | | ?????# ###"" #????????????????????????????????? | | ????# ## ## #???????????????????????????????? | | ????# ###??# #???????????????????????????????? | | ????# #????# #???????????????????????????????? | | ???? ???? #####???????????????????????????????? | | ???# ???##????????????????????????????????????? | | ???# ?????????????????????????????????????????? | | ??? ?????????????????????????????????????????? | | ???# ##?????????????????????????????????????????? | | ???# ##??????????????????????????????????????????? | | ???##????????????????????????????????????????????? | | ??????????????????????????????????????????#??????? | | ???????????????????????????????????????????????#?? | | ?????????????????????????????????????????????????? | +----------------------------------------------------+ Best States ------------- Heat Dissipation 110 Coolant Potential 120 Energy Generation 83 Energy Capacity 1340 Matter Stores 300 Matter Capacity 800 Sight Range 22 Robot Scan Range 16 Terrain Scan Range 30 Terrain Scan Density 10 ECM Strength 2 Jamming Range 16 Base Temperature (-) 100 Armor Coverage 2400 Resistance: KI 30 Resistance: TH 30 Resistance: EM 90 Weapon Shielding 90 Weapon Cycling 25 Phase Shifting 15 Evasion (%) 55 Targeting Accuracy 12 Target Analysis 8 Core Analysis 8 Armor Integrity Analysis 50 Recoil Reduction 6 Energy Filtering 75 Kinecelleration 50 Offensive Hacking 34 Defensive Hacking 20 Authchip Count 1 Trap Extractor Capacity 8 Item Schematics ----------------- Huge Storage Unit | -8/Materials | Scanalyzed Imp. Weapon Cycler | -6/Hub_04(d) | Hacked Nanoactuators | -5/Factory | Hacked Enh. Coil Gun | -5/Factory | Hacked Assault Drone Bay | -5/Zhirov | Free Exp. Heat Sink | -5/Zhirov | Free Exp. Optical Array | -5/Zhirov | Free Imp. Arc Thrower | -5/Zhirov | Free Robot Schematics ------------------ None Fabricated ------------ Hardcell Cannon | x2 | -5/Factory | Preloaded Enh. Coil Gun | x1 | -5/Factory | Authchip Enh. Coil Gun | x1 | -4/Factory | Authchip Repaired ---------- Imp. Heavy Siege Treads | 10% | -5/Factory Centrium Heavy Treads | 24% | -5/Factory | Broken Centrium Heavy Treads | 21% | -5/Factory Biometal Heavy Treads | 20% | -4/Factory | Broken Centrium Heavy Treads | 1% | -4/Factory | Broken F-cell Engine | 11% | -4/Factory Alien Tech Used ----------------- Integrated Dissipator Transdimensional Reconstructor Integrated Mediator Achievements -------------- None Challenges ------------ None Game ------ Seed SystemImpactManipulator Manual? 0 Play Time 08:19:43 Cumulative 442.8 hours Start 2025.06.22 @ 09:25:12 End 2025.06.23 @ 13:35:53 Sessions 9 Manual Loads 0 Difficulty Rogue Special Mode None Game No. 101 Rogue 101 Adventurer 0 Explorer 0 Win Type - Total 31 Types 16/1/6/1/1/0/2/2/1/1 Lore% 88 Gallery% 78 Achievement% 81 Wizard Run 0 Options --------- Layout 1 ASCII 0 Keyboard 0 Movement Mouse Keybinds 0 Fullscreen 1 Font 24/Smallcaps Map View 50x35 Zoom Use 0% Tactical HUD 1 Map Filters NONE Filters NONE Steam 1 RUN: b0e15088-29d9-46ad-86f7-7c0132f9515b